{"text_format":"1","workbook":"xlsx","n_sheets":5,"sheets":["CC X-sell Paramenters","CC X-sell","Macros","Postcode Lookup Tool","Definitions"],"not_rendered":{"charts":0,"images":1,"macros":1,"external_links":2,"defined_names":580,"comments":0,"pivot_tables":0},"unopened":[],"bounds":{"document_bytes":16777216,"sheet_cells":100000,"rows_first":2000,"rows_last":500,"rows_between":2000,"halvings":0,"cell_chars":16384,"cell_head_chars":4096},"cells_cut":0,"cells_raw":0,"read":"whole","date_system":"1900"}

{"sheet":"CC X-sell Paramenters","index":0,"n_rows":105,"n_cols":14,"rows_kept":105,"cut":false,"hidden":true,"merged":[[55,9,55,10],[60,9,60,10],[56,9,56,10],[57,9,57,10],[58,9,58,10],[59,9,59,10],[54,9,54,10],[43,9,43,10],[44,9,44,10],[45,9,45,10],[46,9,46,10],[47,9,47,10],[48,9,48,10],[49,9,49,10],[50,9,50,10],[51,9,51,10],[52,9,52,10],[53,9,53,10],[42,9,42,10],[31,9,31,10],[32,9,32,10],[33,9,33,10],[34,9,34,10],[35,9,35,10],[36,9,36,10],[37,9,37,10],[38,9,38,10],[39,9,39,10],[40,9,40,10],[41,9,41,10]]}
["Marital Status","Income 1","Income2","Surplus","Surplus #","Code","Card Value Applicant 1","Card Value Applicant 2",null,"Marital status","Income1","Income2","surplus","Code"]
["S",">0","<=0",-99999999,1,"SPN1",0,0,null,{"$f":"IF(#REF!=\"\",\"S\",\"J\")","v":{"$error":"#REF!"}},{"$f":"IF(#REF!>0,\"P\",\"N\")","v":{"$error":"#REF!"}},{"$f":"IF(#REF!>0,\"P\",\"N\")","v":{"$error":"#REF!"}},{"$f":"VLOOKUP(#REF!,'CC X-sell Paramenters'!D2:E16,2)","v":{"$error":"#REF!"}},{"$f":"CONCATENATE(J2,K2,L2,M2)","v":{"$error":"#REF!"}}]
["S",">0","<=0",38,2,"SPN2",1000,0]
["S",">0","<=0",76,3,"SPN3",2000,0]
["S",">0","<=0",114,4,"SPN4",3000,0]
["S",">0","<=0",152,5,"SPN5",4000,0]
["S",">0","<=0",190,6,"SPN6",5000,0]
["S",">0","<=0",228,7,"SPN7",6000,0]
["S",">0","<=0",266,8,"SPN8",7000,0]
["S",">0","<=0",304,9,"SPN9",8000,0]
["S",">0","<=0",342,10,"SPN10",9000,0]
["S",">0","<=0",380,11,"SPN11",10000,0]
["S",">0","<=0",456,12,"SPN12",12000,0]
["S",">0","<=0",570,13,"SPN13",15000,0]
["S",">0","<=0",760,14,"SPN14",20000,0]
["S",">0","<=0",950,15,"SPN15",25000,0]
["S","<=0","<=0",-99999999,1,"SNN1",0,0]
["S","<=0","<=0",38,2,"SNN2",0,0]
["S","<=0","<=0",76,3,"SNN3",0,0]
["S","<=0","<=0",114,4,"SNN4",0,0]
["S","<=0","<=0",152,5,"SNN5",0,0]
["S","<=0","<=0",190,6,"SNN6",0,0]
["S","<=0","<=0",228,7,"SNN7",0,0]
["S","<=0","<=0",266,8,"SNN8",0,0]
["S","<=0","<=0",304,9,"SNN9",0,0]
["S","<=0","<=0",342,10,"SNN10",0,0]
["S","<=0","<=0",380,11,"SNN11",0,0]
["S","<=0","<=0",456,12,"SNN12",0,0]
["S","<=0","<=0",570,13,"SNN13",0,0]
["S","<=0","<=0",760,14,"SNN14",0,0]
["S","<=0","<=0",950,15,"SNN15",0,0]
["J",">0","<=0",-99999999,1,"JPN1",0,0]
["J",">0","<=0",38,2,"JPN2",1000,0]
["J",">0","<=0",76,3,"JPN3",2000,0]
["J",">0","<=0",114,4,"JPN4",3000,0]
["J",">0","<=0",152,5,"JPN5",4000,0]
["J",">0","<=0",190,6,"JPN6",5000,0]
["J",">0","<=0",228,7,"JPN7",6000,0]
["J",">0","<=0",266,8,"JPN8",7000,0]
["J",">0","<=0",304,9,"JPN9",8000,0]
["J",">0","<=0",342,10,"JPN10",9000,0]
["J",">0","<=0",380,11,"JPN11",10000,0]
["J",">0","<=0",456,12,"JPN12",12000,0]
["J",">0","<=0",570,13,"JPN13",15000,0]
["J",">0","<=0",760,14,"JPN14",20000,0]
["J",">0","<=0",950,15,"JPN15",25000,0]
["J","<=0","<=0",-99999999,1,"JNN1",0,0]
["J","<=0","<=0",38,2,"JNN2",0,0]
["J","<=0","<=0",76,3,"JNN3",0,0]
["J","<=0","<=0",114,4,"JNN4",0,0]
["J","<=0","<=0",152,5,"JNN5",0,0]
["J","<=0","<=0",190,6,"JNN6",0,0]
["J","<=0","<=0",228,7,"JNN7",0,0]
["J","<=0","<=0",266,8,"JNN8",0,0]
["J","<=0","<=0",304,9,"JNN9",0,0]
["J","<=0","<=0",342,10,"JNN10",0,0]
["J","<=0","<=0",380,11,"JNN11",0,0]
["J","<=0","<=0",456,12,"JNN12",0,0]
["J","<=0","<=0",570,13,"JNN13",0,0]
["J","<=0","<=0",760,14,"JNN14",0,0]
["J","<=0","<=0",950,15,"JNN15",0,0]
["J",">0",">0",-99999999,1,"JPP1",0,0]
["J",">0",">0",38,2,"JPP2",500,500]
["J",">0",">0",76,3,"JPP3",1000,1000]
["J",">0",">0",114,4,"JPP4",1500,1500]
["J",">0",">0",152,5,"JPP5",2000,2000]
["J",">0",">0",190,6,"JPP6",2500,2500]
["J",">0",">0",228,7,"JPP7",3000,3000]
["J",">0",">0",266,8,"JPP8",3500,3500]
["J",">0",">0",304,9,"JPP9",4000,4000]
["J",">0",">0",342,10,"JPP10",4500,4500]
["J",">0",">0",380,11,"JPP11",5000,5000]
["J",">0",">0",456,12,"JPP12",6000,6000]
["J",">0",">0",570,13,"JPP13",7500,7500]
["J",">0",">0",760,14,"JPP14",10000,10000]
["J",">0",">0",950,15,"JPP15",12500,12500]
["J","<=0",">0",-99999999,1,"JNP1",0,0]
["J","<=0",">0",38,2,"JNP2",0,1000]
["J","<=0",">0",76,3,"JNP3",0,2000]
["J","<=0",">0",114,4,"JNP4",0,3000]
["J","<=0",">0",152,5,"JNP5",0,4000]
["J","<=0",">0",190,6,"JNP6",0,5000]
["J","<=0",">0",228,7,"JNP7",0,6000]
["J","<=0",">0",266,8,"JNP8",0,7000]
["J","<=0",">0",304,9,"JNP9",0,8000]
["J","<=0",">0",342,10,"JNP10",0,9000]
["J","<=0",">0",380,11,"JNP11",0,10000]
["J","<=0",">0",456,12,"JNP12",0,12000]
["J","<=0",">0",570,13,"JNP13",0,15000]
["J","<=0",">0",760,14,"JNP14",0,20000]
["J","<=0",">0",950,15,"JNP15",0,25000]
["J"]
["J"]
["J"]
["J"]
["J"]
["J"]
["J"]
["J"]
["J"]
["J"]
["J"]
["J"]
["J"]
["J"]

{"sheet":"CC X-sell","index":1,"n_rows":358,"n_cols":10,"rows_kept":358,"cut":false,"hidden":true,"merged":[[27,1,27,2],[28,1,28,2],[29,1,29,2],[36,1,36,2],[32,1,32,2],[33,1,33,2],[35,1,35,2],[30,1,30,2],[31,1,31,2],[34,1,34,2],[68,1,68,2],[38,1,38,2],[41,1,41,2],[22,1,22,2],[24,1,24,2],[23,1,23,2],[25,1,25,2],[37,1,37,2],[67,1,67,2],[26,1,26,2],[66,1,66,2],[64,1,64,2],[65,1,65,2],[63,1,63,2],[61,1,61,2],[45,1,45,2],[46,1,46,2],[47,1,47,2],[48,1,48,2],[49,1,49,2],[52,1,52,2],[50,1,50,2],[51,1,51,2],[42,1,42,2],[43,1,43,2],[44,1,44,2],[40,1,40,2],[39,1,39,2],[54,1,54,2],[62,1,62,2],[53,1,53,2],[55,1,55,2],[56,1,56,2],[57,1,57,2],[58,1,58,2],[59,1,59,2],[60,1,60,2]]}
["Credit Card Fulfilment Rules - Requirement P1.16"]
[]
[]
["1. Eligibility Policy"]
[]
["App Type","Aust Resident","Busn, Trust or more than 2 applicants?","Home Plus Loan","New consent form?","Requested Limit <$500","App 1 Opt out","App 2 Opt out","Loan Approved","System Action"]
["Sole",null,null,null,null,null,"Y",null,null,"No Card"]
["Joint",null,null,null,null,null,"Y","Y",null,"No Card"]
["Any",null,"Y",null,null,null,null,null,null,"No Card"]
["Any",null,null,null,null,null,null,null,"N","No Card"]
["Any","N",null,"any","N/A",null,"N","N","Y","No Card"]
["Any",null,null,null,null,"Y",null,null,null,"No Card"]
["Any","Y",null,"N","N/A",null,"N/A","N/A","Y","Nil - card offer as per old process."]
["Any","Y",null,"Y","N",null,"N/A","N/A","Y","Nil - card offer as per old process."]
["Sole","Y","N","Y","Y",null,"N","N/A","Y","As per matrix rules for sole applicants"]
["Joint","Y","N","Y","Y",null,"N","N","Y","As per matrix rules for joint applicants"]
["Joint","Y","N","Y","Y",null,"Y","N ","Y","As per matrix rules for joint applicants"]
["Joint","Y","N","Y","Y",null,"N","Y","Y","As per matrix rules for joint applicants"]
[]
[]
["2. Clock Matrix"]
[]
["Type","Surplus (DT or DCA Override value provided)",null,"Income","System Action/Approval"]
["Any","any",null,0,"No Card"]
["Sole","<$25",null,">$0","No Card"]
["Sole","$25-$49",null,">$0",1000]
["Sole","$50-$74",null,">$0",2000]
["Sole","$75-$99",null,">$0",3000]
["Sole","$100-$124",null,">$0",4000]
["Sole","$125-$149",null,">$0",5000]
["Sole","$150-$174",null,">$0",6000]
["Sole","$175-$199",null,">$0",7000]
["Sole","$200-$224",null,">$0",8000]
["Sole","$225-$249",null,">$0",9000]
["Sole","$250-$299",null,">$0",10000]
["Sole","$300-$374",null,">$0",12000]
["Sole","$375-$499",null,">$0",15000]
["Sole","$500-$624",null,">$0",20000]
["Sole",">= $625",null,">$0",25000]
["Joint","<$25",null,"App 1 = >$0\nApp 2 =   $0","No Card"]
["Joint","$25-$49",null,"App 1 = >$0\nApp 2 =   $0","$1000 to applicant with income"]
["Joint","$50-$74",null,"App 1 = >$0\nApp 2 =   $0","$2000 to applicant with income"]
["Joint","$75-$99",null,"App 1 = >$0\nApp 2 =   $0","$3000 to applicant with income"]
["Joint","$100-$124",null,"App 1 = >$0\nApp 2 =   $0","$4000 to applicant with income"]
["Joint","$125-$149",null,"App 1 = >$0\nApp 2 =   $0","$5000 to applicant with income"]
["Joint","$150-$174",null,"App 1 = >$0\nApp 2 =   $0","$6000 to applicant with income"]
["Joint","$175-$199",null,"App 1 = >$0\nApp 2 =   $0","$7000 to applicant with income"]
["Joint","$200-$224",null,"App 1 = >$0\nApp 2 =   $0","$8000 to applicant with income"]
["Joint","$225-$249",null,"App 1 = >$0\nApp 2 =   $0","$9000 to applicant with income"]
["Joint","$250-$299",null,"App 1 = >$0\nApp 2 =   $0","$10000 to applicant with income"]
["Joint","$300-$374",null,"App 1 = >$0\nApp 2 =   $0","$12000 to applicant with income"]
["Joint","$375-$499",null,"App 1 = >$0\nApp 2 =   $0","$15000 to applicant with income"]
["Joint","$500-$624",null,"App 1 = >$0\nApp 2 =   $0","$20000 to applicant with income"]
["Joint",">= $625",null,"App 1 = >$0\nApp 2 =   $0","$25000 to applicant with income"]
["Joint","<$25",null,"App 1 = >$0\nApp 2 = >$0","No Card"]
["Joint","$25-$49",null,"App 1 = >$0\nApp 2 = >$0","$500 each"]
["Joint","$50-$74",null,"App 1 = >$0\nApp 2 = >$0","$1,000 each"]
["Joint","$75-$99",null,"App 1 = >$0\nApp 2 = >$0","$1,500 each"]
["Joint","$100-$124",null,"App 1 = >$0\nApp 2 = >$0","$2,000 each"]
["Joint","$125-$149",null,"App 1 = >$0\nApp 2 = >$0","$2,500 each"]
["Joint","$150-$174",null,"App 1 = >$0\nApp 2 = >$0","$3,000 each"]
["Joint","$175-$199",null,"App 1 = >$0\nApp 2 = >$0","$3,500 each"]
["Joint","$200-$224",null,"App 1 = >$0\nApp 2 = >$0","$4,000 each"]
["Joint","$225-$249",null,"App 1 = >$0\nApp 2 = >$0","$4,500 each"]
["Joint","$250-$299",null,"App 1 = >$0\nApp 2 = >$0","$5,000 each"]
["Joint","$300-$374",null,"App 1 = >$0\nApp 2 = >$0","$6,000each"]
["Joint","$375-$499",null,"App 1 = >$0\nApp 2 = >$0","$7,500 each"]
["Joint","$500-$624",null,"App 1 = >$0\nApp 2 = >$0","$10,000 each"]
["Joint ",">= $625",null,"App 1 = >$0\nApp 2 = >$0","$12,500 each"]
[]
["3. Product Policy"]
[]
["System Approved Card Amt (each card)","Customer Requested Card Amt","System Approved Card Type","Customer Requested Card Type","Card Amt Fulfilled","Card Type Fulfilled"]
[500,"Not specified","Low Fee Visa Card","Not specified",500,"Low Fee Visa Card"]
[500,"Not specified","Low Fee Visa Card","NAB Low Rate Visa Card",500,"NAB Low Rate Visa Card"]
[500,"Not specified","Low Fee Visa Card","Qantas Gold Card",500,"Low Fee Visa Card"]
[500,"Not specified","Low Fee Visa Card","Low Fee Visa Card",500,"Low Fee Visa Card"]
[500,"$500+","Low Fee Visa Card","Not specified",500,"Low Fee Visa Card"]
[500,"$500+","Low Fee Visa Card","NAB Low Rate Visa Card",500,"NAB Low Rate Visa Card"]
[500,"$500+","Low Fee Visa Card","Qantas Gold Card",500,"Low Fee Visa Card"]
[500,"$500+","Low Fee Visa Card","Low Fee Visa Card",500,"Low Fee Visa Card"]
[1000,"Not specified","Low Fee Visa Card","Not specified",1000,"Low Fee Visa Card"]
[1000,"Not specified","Low Fee Visa Card","NAB Low Rate Visa Card",1000,"NAB Low Rate Visa Card"]
[1000,"Not specified","Low Fee Visa Card","Qantas Gold Card",1000,"Low Fee Visa Card"]
[1000,"Not specified","Low Fee Visa Card","Low Fee Visa Card",1000,"Low Fee Visa Card"]
[1000,"$500-$1000","Low Fee Visa Card","Not specified","Customer specified amt","Low Fee Visa Card"]
[1000,"$500-$1000","Low Fee Visa Card","NAB Low Rate Visa Card","Customer specified amt","NAB Low Rate Visa Card"]
[1000,"$500-$1000","Low Fee Visa Card","Qantas Gold Card","Customer specified amt","Low Fee Visa Card"]
[1000,"$500-$1000","Low Fee Visa Card","Low Fee Visa Card","Customer specified amt","Low Fee Visa Card"]
[1000,"$1000+","Low Fee Visa Card","Not specified",1000,"Low Fee Visa Card"]
[1000,"$1000+","Low Fee Visa Card","NAB Low Rate Visa Card",1000,"NAB Low Rate Visa Card"]
[1000,"$1000+","Low Fee Visa Card","Qantas Gold Card",1000,"Low Fee Visa Card"]
[1000,"$1000+","Low Fee Visa Card","Low Fee Visa Card",1000,"Low Fee Visa Card"]
[1500,"Not specified","Low Fee Visa Card","Not specified",1500,"Low Fee Visa Card"]
[1500,"Not specified","Low Fee Visa Card","NAB Low Rate Visa Card",1500,"NAB Low Rate Visa Card"]
[1500,"Not specified","Low Fee Visa Card","Qantas Gold Card",1500,"Low Fee Visa Card"]
[1500,"Not specified","Low Fee Visa Card","Low Fee Visa Card",1500,"Low Fee Visa Card"]
[1500,"$500-$1500","Low Fee Visa Card","Not specified","Customer specified amt","Low Fee Visa Card"]
[1500,"$500-$1500","Low Fee Visa Card","NAB Low Rate Visa Card","Customer specified amt","NAB Low Rate Visa Card"]
[1500,"$500-$1500","Low Fee Visa Card","Qantas Gold Card","Customer specified amt","Low Fee Visa Card"]
[1500,"$500-$1500","Low Fee Visa Card","Low Fee Visa Card","Customer specified amt","Low Fee Visa Card"]
[1500,"$1500+","Low Fee Visa Card","Not specified",1500,"Low Fee Visa Card"]
[1500,"$1500+","Low Fee Visa Card","NAB Low Rate Visa Card",1500,"NAB Low Rate Visa Card"]
[1500,"$1500+","Low Fee Visa Card","Qantas Gold Card",1500,"Low Fee Visa Card"]
[1500,"$1500+","Low Fee Visa Card","Low Fee Visa Card",1500,"Low Fee Visa Card"]
[2000,"Not specified","Low Fee Visa Card","Not Specified",2000,"Low Fee Visa Card"]
[2000,"Not specified","Low Fee Visa Card","NAB Low Rate Visa Card",2000,"NAB Low Rate Visa Card"]
[2000,"Not specified","Low Fee Visa Card","Qantas Gold Card",2000,"Low Fee Visa Card"]
[2000,"Not specified","Low Fee Visa Card","Low Fee Visa Card",2000,"Low Fee Visa Card"]
[2000,"$500-$2000","Low Fee Visa Card","Not Specified","Customer specified amt","Low Fee Visa Card"]
[2000,"$500-$2000","Low Fee Visa Card","NAB Low Rate Visa Card","Customer specified amt","NAB Low Rate Visa Card"]
[2000,"$500-$2000","Low Fee Visa Card","Qantas Gold Card","Customer specified amt","Low Fee Visa Card"]
[2000,"$500-$2000","Low Fee Visa Card","Low Fee Visa Card","Customer specified amt","Low Fee Visa Card"]
[2000,"$2000+","Low Fee Visa Card","Not Specified",2000,"Low Fee Visa Card"]
[2000,"$2000+","Low Fee Visa Card","NAB Low Rate Visa Card",2000,"NAB Low Rate Visa Card"]
[2000,"$2000+","Low Fee Visa Card","Qantas Gold Card",2000,"Low Fee Visa Card"]
[2000,"$2000+","Low Fee Visa Card","Low Fee Visa Card",2000,"Low Fee Visa Card"]
[2500,"Not specified","Low Fee Visa Card","Not Specified",2500,"Low Fee Visa Card"]
[2500,"Not specified","Low Fee Visa Card","NAB Low Rate Visa Card",2500,"NAB Low Rate Visa Card"]
[2500,"Not specified","Low Fee Visa Card","Qantas Gold Card",2500,"Low Fee Visa Card"]
[2500,"Not specified","Low Fee Visa Card","Low Fee Visa Card",2500,"Low Fee Visa Card"]
[2500,"$500-$2500","Low Fee Visa Card","Not Specified","Customer specified amt","Low Fee Visa Card"]
[2500,"$500-$2500","Low Fee Visa Card","NAB Low Rate Visa Card","Customer specified amt","NAB Low Rate Visa Card"]
[2500,"$500-$2500","Low Fee Visa Card","Qantas Gold Card","Customer specified amt","Low Fee Visa Card"]
[2500,"$500-$2500","Low Fee Visa Card","Low Fee Visa Card","Customer specified amt","Low Fee Visa Card"]
[2500,"$2500+","Low Fee Visa Card","Not Specified",2500,"Low Fee Visa Card"]
[2500,"$2500+","Low Fee Visa Card","NAB Low Rate Visa Card",2500,"NAB Low Rate Visa Card"]
[2500,"$2500+","Low Fee Visa Card","Qantas Gold Card",2500,"Low Fee Visa Card"]
[2500,"$2500+","Low Fee Visa Card","Low Fee Visa Card",2500,"Low Fee Visa Card"]
[3000,"Not specified","Low Fee Visa Card","Not Specified",3000,"Low Fee Visa Card"]
[3000,"Not specified","Low Fee Visa Card","NAB Low Rate Visa Card",3000,"NAB Low Rate Visa Card"]
[3000,"Not specified","Low Fee Visa Card","Qantas Gold Card",3000,"Low Fee Visa Card"]
[3000,"Not specified","Low Fee Visa Card","Low Fee Visa Card",3000,"Low Fee Visa Card"]
[3000,"$500-$3000","Low Fee Visa Card","Not Specified","Customer specified amt","Low Fee Visa Card"]
[3000,"$500-$3000","Low Fee Visa Card","NAB Low Rate Visa Card","Customer specified amt","NAB Low Rate Visa Card"]
[3000,"$500-$3000","Low Fee Visa Card","Qantas Gold Card","Customer specified amt","Low Fee Visa Card"]
[3000,"$500-$3000","Low Fee Visa Card","Low Fee Visa Card","Customer specified amt","Low Fee Visa Card"]
[3000,"$3000+","Low Fee Visa Card","Not Specified",3000,"Low Fee Visa Card"]
[3000,"$3000+","Low Fee Visa Card","NAB Low Rate Visa Card",3000,"NAB Low Rate Visa Card"]
[3000,"$3000+","Low Fee Visa Card","Qantas Gold Card",3000,"Low Fee Visa Card"]
[3000,"$3000+","Low Fee Visa Card","Low Fee Visa Card",3000,"Low Fee Visa Card"]
[3500,"Not specified","Low Fee Visa Card","Not Specified",3500,"Low Fee Visa Card"]
[3500,"Not specified","Low Fee Visa Card","NAB Low Rate Visa Card",3500,"NAB Low Rate Visa Card"]
[3500,"Not specified","Low Fee Visa Card","Qantas Gold Card",3500,"Low Fee Visa Card"]
[3500,"Not specified","Low Fee Visa Card","Low Fee Visa Card",3500,"Low Fee Visa Card"]
[3500,"$500-$3500","Low Fee Visa Card","Not Specified","Customer specified amt","Low Fee Visa Card"]
[3500,"$500-$3500","Low Fee Visa Card","NAB Low Rate Visa Card","Customer specified amt","NAB Low Rate Visa Card"]
[3500,"$500-$3500","Low Fee Visa Card","Qantas Gold Card","Customer specified amt","Low Fee Visa Card"]
[3500,"$500-$3500","Low Fee Visa Card","Low Fee Visa Card","Customer specified amt","Low Fee Visa Card"]
[3500,"$3500+","Low Fee Visa Card","Not Specified",3500,"Low Fee Visa Card"]
[3500,"$3500+","Low Fee Visa Card","NAB Low Rate Visa Card",3500,"NAB Low Rate Visa Card"]
[3500,"$3500+","Low Fee Visa Card","Qantas Gold Card",3500,"Low Fee Visa Card"]
[3500,"$3500+","Low Fee Visa Card","Low Fee Visa Card",3500,"Low Fee Visa Card"]
[4000,"Not specified","Low Fee Visa Card","Not Specified",4000,"Low Fee Visa Card"]
[4000,"Not specified","Low Fee Visa Card","NAB Low Rate Visa Card",4000,"NAB Low Rate Visa Card"]
[4000,"Not specified","Low Fee Visa Card","Qantas Gold Card",4000,"Low Fee Visa Card"]
[4000,"Not specified","Low Fee Visa Card","Low Fee Visa Card",4000,"Low Fee Visa Card"]
[4000,"$500-$4000","Low Fee Visa Card","Not Specified","Customer specified amt","Low Fee Visa Card"]
[4000,"$500-$4000","Low Fee Visa Card","NAB Low Rate Visa Card","Customer specified amt","NAB Low Rate Visa Card"]
[4000,"$500-$4000","Low Fee Visa Card","Qantas Gold Card","Customer specified amt","Low Fee Visa Card"]
[4000,"$500-$4000","Low Fee Visa Card","Low Fee Visa Card","Customer specified amt","Low Fee Visa Card"]
[4000,"$4000+","Low Fee Visa Card","Not Specified",4000,"Low Fee Visa Card"]
[4000,"$4000+","Low Fee Visa Card","NAB Low Rate Visa Card",4000,"NAB Low Rate Visa Card"]
[4000,"$4000+","Low Fee Visa Card","Qantas Gold Card",4000,"Low Fee Visa Card"]
[4000,"$4000+","Low Fee Visa Card","Low Fee Visa Card",4000,"Low Fee Visa Card"]
[4500,"Not specified","Low Fee Visa Card","Not Specified",4500,"Low Fee Visa Card"]
[4500,"Not specified","Low Fee Visa Card","NAB Low Rate Visa Card",4500,"NAB Low Rate Visa Card"]
[4500,"Not specified","Low Fee Visa Card","Qantas Gold Card",4500,"Low Fee Visa Card"]
[4500,"Not specified","Low Fee Visa Card","Low Fee Visa Card",4500,"Low Fee Visa Card"]
[4500,"$500-$4500","Low Fee Visa Card","Not Specified","Customer specified amt","Low Fee Visa Card"]
[4500,"$500-$4500","Low Fee Visa Card","NAB Low Rate Visa Card","Customer specified amt","NAB Low Rate Visa Card"]
[4500,"$500-$4500","Low Fee Visa Card","Qantas Gold Card","Customer specified amt","Low Fee Visa Card"]
[4500,"$500-$4500","Low Fee Visa Card","Low Fee Visa Card","Customer specified amt","Low Fee Visa Card"]
[4500,"$4500+","Low Fee Visa Card","Not Specified",4500,"Low Fee Visa Card"]
[4500,"$4500+","Low Fee Visa Card","NAB Low Rate Visa Card",4500,"NAB Low Rate Visa Card"]
[4500,"$4500+","Low Fee Visa Card","Qantas Gold Card",4500,"Low Fee Visa Card"]
[4500,"$4500+","Low Fee Visa Card","Low Fee Visa Card",4500,"Low Fee Visa Card"]
[5000,"Not specified","Qantas Gold Card","Not Specified",5000,"Qantas Gold Card"]
[5000,"Not specified","Qantas Gold Card","NAB Low Rate Visa Card",5000,"NAB Low Rate Visa Card"]
[5000,"Not specified","Qantas Gold Card","Qantas Gold Card",5000,"Qantas Gold Card"]
[5000,"Not specified","Qantas Gold Card","Low Fee Visa Card",5000,"Low Fee Visa Card"]
[5000,"$500-$4999","Qantas Gold Card","Not Specified","Customer specified amt","Low Fee Visa Card"]
[5000,"$500-$4999","Qantas Gold Card","NAB Low Rate Visa Card","Customer specified amt","NAB Low Rate Visa Card"]
[5000,"$500-$4999","Qantas Gold Card","Qantas Gold Card","Customer specified amt","Low Fee Visa Card"]
[5000,"$500-$4999","Qantas Gold Card","Low Fee Visa Card","Customer specified amt","Low Fee Visa Card"]
[5000,5000,"Qantas Gold Card","Not Specified",5000,"Qantas Gold Card"]
[5000,5000,"Qantas Gold Card","Qantas Gold Card",5000,"Qantas Gold Card"]
[5000,5000,"Qantas Gold Card","Low Fee Visa Card",5000,"Low Fee Visa Card"]
[5000,"$5000+","Qantas Gold Card","Not Specified",5000,"Qantas Gold Card"]
[5000,"$5000+","Qantas Gold Card","NAB Low Rate Visa Card",5000,"NAB Low Rate Visa Card"]
[5000,"$5000+","Qantas Gold Card","Qantas Gold Card",5000,"Qantas Gold Card"]
[5000,"$5000+","Qantas Gold Card","Low Fee Visa Card",5000,"Low Fee Visa Card"]
[6000,"Not specified","Qantas Gold Card","Not Specified",6000,"Qantas Gold Card"]
[6000,"Not specified","Qantas Gold Card","NAB Low Rate Visa Card",6000,"NAB Low Rate Visa Card"]
[6000,"Not specified","Qantas Gold Card","Qantas Gold Card",6000,"Qantas Gold Card"]
[6000,"Not specified","Qantas Gold Card","Low Fee Visa Card",6000,"Low Fee Visa Card"]
[6000,"$500-$4999","Qantas Gold Card","Not Specified","Customer specified amt","Low Fee Visa Card"]
[6000,"$500-$5999","Qantas Gold Card","NAB Low Rate Visa Card","Customer specified amt","NAB Low Rate Visa Card"]
[6000,"$500-$4999","Qantas Gold Card","Qantas Gold Card","Customer specified amt","Low Fee Visa Card"]
[6000,"$500-$4999","Qantas Gold Card","Low Fee Visa Card","Customer specified amt","Low Fee Visa Card"]
[6000,"$5000-$6000","Qantas Gold Card","Not Specified","Customer specified amt","Qantas Gold Card"]
[6000,"$5000-$6000","Qantas Gold Card","Qantas Gold Card","Customer specified amt","Qantas Gold Card"]
[6000,"$5000-$6000","Qantas Gold Card","Low Fee Visa Card","Customer specified amt","Low Fee Visa Card"]
[6000,"$6000+","Qantas Gold Card","Not Specified",6000,"Qantas Gold Card"]
[6000,"$6000+","Qantas Gold Card","NAB Low Rate Visa Card",6000,"NAB Low Rate Visa Card"]
[6000,"$6000+","Qantas Gold Card","Qantas Gold Card",6000,"Qantas Gold Card"]
[6000,"$6000+","Qantas Gold Card","Low Fee Visa Card",6000,"Low Fee Visa Card"]
[7000,"Not specified","Qantas Gold Card","Not Specified",7000,"Qantas Gold Card"]
[7000,"Not specified","Qantas Gold Card","NAB Low Rate Visa Card",7000,"NAB Low Rate Visa Card"]
[7000,"Not specified","Qantas Gold Card","Qantas Gold Card",7000,"Qantas Gold Card"]
[7000,"Not specified","Qantas Gold Card","Low Fee Visa Card",7000,"Low Fee Visa Card"]
[7000,"$500-$4999","Qantas Gold Card","Not Specified","Customer specified amt","Low Fee Visa Card"]
[7000,"$500-$6999","Qantas Gold Card","NAB Low Rate Visa Card","Customer specified amt","NAB Low Rate Visa Card"]
[7000,"$500-$4999","Qantas Gold Card","Qantas Gold Card","Customer specified amt","Low Fee Visa Card"]
[7000,"$500-$4999","Qantas Gold Card","Low Fee Visa Card","Customer specified amt","Low Fee Visa Card"]
[7000,"$5000-$7000","Qantas Gold Card","Not Specified","Customer specified amt","Qantas Gold Card"]
[7000,"$5000-$7000","Qantas Gold Card","Qantas Gold Card","Customer specified amt","Qantas Gold Card"]
[7000,"$5000-$7000","Qantas Gold Card","Low Fee Visa Card","Customer specified amt","Low Fee Visa Card"]
[7000,"$7000+","Qantas Gold Card","Not Specified",7000,"Qantas Gold Card"]
[7000,"$7000+","Qantas Gold Card","NAB Low Rate Visa Card",7000,"NAB Low Rate Visa Card"]
[7000,"$7000+","Qantas Gold Card","Qantas Gold Card",7000,"Qantas Gold Card"]
[7000,"$7000+","Qantas Gold Card","Low Fee Visa Card",7000,"Low Fee Visa Card"]
[7500,"Not specified","Qantas Gold Card","Not Specified",7500,"Qantas Gold Card"]
[7500,"Not specified","Qantas Gold Card","NAB Low Rate Visa Card",7500,"NAB Low Rate Visa Card"]
[7500,"Not specified","Qantas Gold Card","Qantas Gold Card",7500,"Qantas Gold Card"]
[7500,"Not specified","Qantas Gold Card","Low Fee Visa Card",7500,"Low Fee Visa Card"]
[7500,"$500-$4999","Qantas Gold Card","Not Specified","Customer specified amt","Low Fee Visa Card"]
[7500,"$500-$7499","Qantas Gold Card","NAB Low Rate Visa Card","Customer specified amt","NAB Low Rate Visa Card"]
[7500,"$500-$4999","Qantas Gold Card","Qantas Gold Card","Customer specified amt","Low Fee Visa Card"]
[7500,"$500-$4999","Qantas Gold Card","Low Fee Visa Card","Customer specified amt","Low Fee Visa Card"]
[7500,"$5000-$7500","Qantas Gold Card","Not Specified","Customer specified amt","Qantas Gold Card"]
[7500,"$5000-$7500","Qantas Gold Card","Qantas Gold Card","Customer specified amt","Qantas Gold Card"]
[7500,"$5000-$7500","Qantas Gold Card","Low Fee Visa Card","Customer specified amt","Low Fee Visa Card"]
[7500,"$7500+","Qantas Gold Card","Not Specified",7500,"Qantas Gold Card"]
[7500,"$7500+","Qantas Gold Card","NAB Low Rate Visa Card",7500,"NAB Low Rate Visa Card"]
[7500,"$7500+","Qantas Gold Card","Qantas Gold Card",7500,"Qantas Gold Card"]
[7500,"$7500+","Qantas Gold Card","Low Fee Visa Card",7500,"Low Fee Visa Card"]
[8000,"Not specified","Qantas Gold Card","Not Specified",8000,"Qantas Gold Card"]
[8000,"Not specified","Qantas Gold Card","NAB Low Rate Visa Card",8000,"NAB Low Rate Visa Card"]
[8000,"Not specified","Qantas Gold Card","Qantas Gold Card",8000,"Qantas Gold Card"]
[8000,"Not specified","Qantas Gold Card","Low Fee Visa Card",8000,"Low Fee Visa Card"]
[8000,"$500-$4999","Qantas Gold Card","Not Specified","Customer specified amt","Low Fee Visa Card"]
[8000,"$500-$7999","Qantas Gold Card","NAB Low Rate Visa Card","Customer specified amt","NAB Low Rate Visa Card"]
[8000,"$500-$4999","Qantas Gold Card","Qantas Gold Card","Customer specified amt","Low Fee Visa Card"]
[8000,"$500-$4999","Qantas Gold Card","Low Fee Visa Card","Customer specified amt","Low Fee Visa Card"]
[8000,"$5000-$8000","Qantas Gold Card","Not Specified","Customer specified amt","Qantas Gold Card"]
[8000,"$5000-$8000","Qantas Gold Card","Qantas Gold Card","Customer specified amt","Qantas Gold Card"]
[8000,"$5000-$8000","Qantas Gold Card","Low Fee Visa Card","Customer specified amt","Low Fee Visa Card"]
[8000,"$8000+","Qantas Gold Card","Not Specified",8000,"Qantas Gold Card"]
[8000,"$8000+","Qantas Gold Card","NAB Low Rate Visa Card",8000,"NAB Low Rate Visa Card"]
[8000,"$8000+","Qantas Gold Card","Qantas Gold Card",8000,"Qantas Gold Card"]
[8000,"$8000+","Qantas Gold Card","Low Fee Visa Card",8000,"Low Fee Visa Card"]
[9000,"Not specified","Qantas Gold Card","Not Specified",9000,"Qantas Gold Card"]
[9000,"Not specified","Qantas Gold Card","NAB Low Rate Visa Card",9000,"NAB Low Rate Visa Card"]
[9000,"Not specified","Qantas Gold Card","Qantas Gold Card",9000,"Qantas Gold Card"]
[9000,"Not specified","Qantas Gold Card","Low Fee Visa Card",9000,"Low Fee Visa Card"]
[9000,"$500-$4999","Qantas Gold Card","Not Specified","Customer specified amt","Low Fee Visa Card"]
[9000,"$500-$8999","Qantas Gold Card","NAB Low Rate Visa Card","Customer specified amt","NAB Low Rate Visa Card"]
[9000,"$500-$4999","Qantas Gold Card","Qantas Gold Card","Customer specified amt","Low Fee Visa Card"]
[9000,"$500-$4999","Qantas Gold Card","Low Fee Visa Card","Customer specified amt","Low Fee Visa Card"]
[9000,"$5000-$9000","Qantas Gold Card","Not Specified","Customer specified amt","Qantas Gold Card"]
[9000,"$5000-$9000","Qantas Gold Card","Qantas Gold Card","Customer specified amt","Qantas Gold Card"]
[9000,"$5000-$9000","Qantas Gold Card","Low Fee Visa Card","Customer specified amt","Low Fee Visa Card"]
[9000,"$9000+","Qantas Gold Card","Not Specified",9000,"Qantas Gold Card"]
[9000,"$9000+","Qantas Gold Card","NAB Low Rate Visa Card",9000,"NAB Low Rate Visa Card"]
[9000,"$9000+","Qantas Gold Card","Qantas Gold Card",9000,"Qantas Gold Card"]
[9000,"$9000+","Qantas Gold Card","Low Fee Visa Card",9000,"Low Fee Visa Card"]
[10000,"Not specified","Qantas Gold Card","Not Specified",10000,"Qantas Gold Card"]
[10000,"Not specified","Qantas Gold Card","NAB Low Rate Visa Card",10000,"NAB Low Rate Visa Card"]
[10000,"Not specified","Qantas Gold Card","Qantas Gold Card",10000,"Qantas Gold Card"]
[10000,"Not specified","Qantas Gold Card","Low Fee Visa Card",10000,"Low Fee Visa Card"]
[10000,"$500-$4999","Qantas Gold Card","Not Specified","Customer specified amt","Low Fee Visa Card"]
[10000,"$500-$9999","Qantas Gold Card","NAB Low Rate Visa Card","Customer specified amt","NAB Low Rate Visa Card"]
[10000,"$500-$4999","Qantas Gold Card","Qantas Gold Card","Customer specified amt","Low Fee Visa Card"]
[10000,"$500-$4999","Qantas Gold Card","Low Fee Visa Card","Customer specified amt","Low Fee Visa Card"]
[10000,"$5000-$10000","Qantas Gold Card","Not Specified","Customer specified amt","Qantas Gold Card"]
[10000,"$5000-$10000","Qantas Gold Card","Qantas Gold Card","Customer specified amt","Qantas Gold Card"]
[10000,"$5000-$10000","Qantas Gold Card","Low Fee Visa Card","Customer specified amt","Low Fee Visa Card"]
[10000,"$10000+","Qantas Gold Card","Not Specified",10000,"Qantas Gold Card"]
[10000,"$10000+","Qantas Gold Card","NAB Low Rate Visa Card",10000,"NAB Low Rate Visa Card"]
[10000,"$10000+","Qantas Gold Card","Qantas Gold Card",10000,"Qantas Gold Card"]
[10000,"$10000+","Qantas Gold Card","Low Fee Visa Card",10000,"Low Fee Visa Card"]
[12000,"Not specified","Qantas Gold Card","Not Specified",12000,"Qantas Gold Card"]
[12000,"Not specified","Qantas Gold Card","NAB Low Rate Visa Card",12000,"NAB Low Rate Visa Card"]
[12000,"Not specified","Qantas Gold Card","Qantas Gold Card",12000,"Qantas Gold Card"]
[12000,"Not specified","Qantas Gold Card","Low Fee Visa Card",12000,"Low Fee Visa Card"]
[12000,"$500-$4999","Qantas Gold Card","Not Specified","Customer specified amt","Low Fee Visa Card"]
[12000,"$500-$11999","Qantas Gold Card","NAB Low Rate Visa Card","Customer specified amt","NAB Low Rate Visa Card"]
[12000,"$500-$4999","Qantas Gold Card","Qantas Gold Card","Customer specified amt","Low Fee Visa Card"]
[12000,"$500-$4999","Qantas Gold Card","Low Fee Visa Card","Customer specified amt","Low Fee Visa Card"]
[12000,"$5000-$12000","Qantas Gold Card","Not Specified","Customer specified amt","Qantas Gold Card"]
[12000,"$5000-$12000","Qantas Gold Card","Qantas Gold Card","Customer specified amt","Qantas Gold Card"]
[12000,"$5000-$12000","Qantas Gold Card","Low Fee Visa Card","Customer specified amt","Low Fee Visa Card"]
[12000,"$12000+","Qantas Gold Card","Not Specified",12000,"Qantas Gold Card"]
[12000,"$12000+","Qantas Gold Card","NAB Low Rate Visa Card",12000,"NAB Low Rate Visa Card"]
[12000,"$12000+","Qantas Gold Card","Qantas Gold Card",12000,"Qantas Gold Card"]
[12000,"$12000+","Qantas Gold Card","Low Fee Visa Card",12000,"Low Fee Visa Card"]
[12500,"Not specified","Qantas Gold Card","Not Specified",12500,"Qantas Gold Card"]
[12500,"Not specified","Qantas Gold Card","NAB Low Rate Visa Card",12500,"NAB Low Rate Visa Card"]
[12500,"Not specified","Qantas Gold Card","Qantas Gold Card",12500,"Qantas Gold Card"]
[12500,"Not specified","Qantas Gold Card","Low Fee Visa Card",12500,"Low Fee Visa Card"]
[12500,"$500-$4999","Qantas Gold Card","Not Specified","Customer specified amt","Low Fee Visa Card"]
[12500,"$500-$12499","Qantas Gold Card","NAB Low Rate Visa Card","Customer specified amt","NAB Low Rate Visa Card"]
[12500,"$500-$4999","Qantas Gold Card","Qantas Gold Card","Customer specified amt","Low Fee Visa Card"]
[12500,"$500-$4999","Qantas Gold Card","Low Fee Visa Card","Customer specified amt","Low Fee Visa Card"]
[12500,"$5000-$12500","Qantas Gold Card","Not Specified","Customer specified amt","Qantas Gold Card"]
[12500,"$5000-$12500","Qantas Gold Card","Qantas Gold Card","Customer specified amt","Qantas Gold Card"]
[12500,"$5000-$12500","Qantas Gold Card","Low Fee Visa Card","Customer specified amt","Low Fee Visa Card"]
[12500,"$5000-$12500","Qantas Gold Card","Not Specified","Customer specified amt","Qantas Gold Card"]
[12500,"$12500+","Qantas Gold Card","NAB Low Rate Visa Card",12500,"NAB Low Rate Visa Card"]
[12500,"$12500+","Qantas Gold Card","Qantas Gold Card",12500,"Qantas Gold Card"]
[12500,"$12500+","Qantas Gold Card","Low Fee Visa Card",12500,"Low Fee Visa Card"]
[12500,"$12500+","Qantas Gold Card","Not Specified",12500,"Qantas Gold Card"]
[15000,"Not specified","Qantas Gold Card","Not Specified",15000,"Qantas Gold Card"]
[15000,"Not specified","Qantas Gold Card","NAB Low Rate Visa Card",15000,"NAB Low Rate Visa Card"]
[15000,"Not specified","Qantas Gold Card","Qantas Gold Card",15000,"Qantas Gold Card"]
[15000,"Not specified","Qantas Gold Card","Low Fee Visa Card",15000,"Low Fee Visa Card"]
[15000,"$500-$4999","Qantas Gold Card","Not Specified","Customer specified amt","Low Fee Visa Card"]
[15000,"$500-$14999","Qantas Gold Card","NAB Low Rate Visa Card","Customer specified amt","NAB Low Rate Visa Card"]
[15000,"$500-$4999","Qantas Gold Card","Qantas Gold Card","Customer specified amt","Low Fee Visa Card"]
[15000,"$500-$4999","Qantas Gold Card","Low Fee Visa Card","Customer specified amt","Low Fee Visa Card"]
[15000,"$5000-$15000","Qantas Gold Card","Not Specified","Customer specified amt","Qantas Gold Card"]
[15000,"$5000-$15000","Qantas Gold Card","Qantas Gold Card","Customer specified amt","Qantas Gold Card"]
[15000,"$5000-$15000","Qantas Gold Card","Low Fee Visa Card","Customer specified amt","Low Fee Visa Card"]
[15000,"$15000+","Qantas Gold Card","Not Specified",15000,"Qantas Gold Card"]
[15000,"$15000+","Qantas Gold Card","NAB Low Rate Visa Card",15000,"NAB Low Rate Visa Card"]
[15000,"$15000+","Qantas Gold Card","Qantas Gold Card",15000,"Qantas Gold Card"]
[15000,"$15000+","Qantas Gold Card","Low Fee Visa Card",15000,"Low Fee Visa Card"]
[20000,"Not specified","Qantas Gold Card","Not Specified",20000,"Qantas Gold Card"]
[20000,"Not specified","Qantas Gold Card","NAB Low Rate Visa Card",20000,"NAB Low Rate Visa Card"]
[20000,"Not specified","Qantas Gold Card","Qantas Gold Card",20000,"Qantas Gold Card"]
[20000,"Not specified","Qantas Gold Card","Low Fee Visa Card",20000,"Low Fee Visa Card"]
[20000,"$500-$4999","Qantas Gold Card","Not Specified","Customer specified amt","Low Fee Visa Card"]
[20000,"$500-$19999","Qantas Gold Card","NAB Low Rate Visa Card","Customer specified amt","NAB Low Rate Visa Card"]
[20000,"$500-$4999","Qantas Gold Card","Qantas Gold Card","Customer specified amt","Low Fee Visa Card"]
[20000,"$500-$4999","Qantas Gold Card","Low Fee Visa Card","Customer specified amt","Low Fee Visa Card"]
[20000,"$5000-$20000","Qantas Gold Card","Not Specified","Customer specified amt","Qantas Gold Card"]
[20000,"$5000-$20000","Qantas Gold Card","Qantas Gold Card","Customer specified amt","Qantas Gold Card"]
[20000,"$5000-$20000","Qantas Gold Card","Low Fee Visa Card","Customer specified amt","Low Fee Visa Card"]
[20000,"$20000+","Qantas Gold Card","Not Specified",20000,"Qantas Gold Card"]
[20000,"$20000+","Qantas Gold Card","NAB Low Rate Visa Card",20000,"NAB Low Rate Visa Card"]
[20000,"$20000+","Qantas Gold Card","Qantas Gold Card",20000,"Qantas Gold Card"]
[20000,"$20000+","Qantas Gold Card","Low Fee Visa Card",20000,"Low Fee Visa Card"]
[25000,"Not specified","Qantas Gold Card","Not Specified",25000,"Qantas Gold Card"]
[25000,"Not specified","Qantas Gold Card","NAB Low Rate Visa Card",25000,"NAB Low Rate Visa Card"]
[25000,"Not specified","Qantas Gold Card","Qantas Gold Card",25000,"Qantas Gold Card"]
[25000,"Not specified","Qantas Gold Card","Low Fee Visa Card",25000,"Low Fee Visa Card"]
[25000,"$500-$4999","Qantas Gold Card","Not Specified","Customer specified amt","Low Fee Visa Card"]
[25000,"$500-$24999","Qantas Gold Card","NAB Low Rate Visa Card","Customer specified amt","NAB Low Rate Visa Card"]
[25000,"$500-$4999","Qantas Gold Card","Qantas Gold Card","Customer specified amt","Low Fee Visa Card"]
[25000,"$500-$4999","Qantas Gold Card","Low Fee Visa Card","Customer specified amt","Low Fee Visa Card"]
[25000,"$5000-$25000","Qantas Gold Card","Not Specified","Customer specified amt","Qantas Gold Card"]
[25000,"$5000-$25000","Qantas Gold Card","Qantas Gold Card","Customer specified amt","Qantas Gold Card"]
[25000,"$5000-$25000","Qantas Gold Card","Low Fee Visa Card","Customer specified amt","Low Fee Visa Card"]
[25000,"$25000+","Qantas Gold Card","Not Specified",25000,"Qantas Gold Card"]
[25000,"$25000+","Qantas Gold Card","NAB Low Rate Visa Card",25000,"NAB Low Rate Visa Card"]
[25000,"$25000+","Qantas Gold Card","Qantas Gold Card",25000,"Qantas Gold Card"]
[25000,"$25000+","Qantas Gold Card","Low Fee Visa Card",25000,"Low Fee Visa Card"]

{"sheet":"Macros","index":2,"n_rows":136,"n_cols":2,"rows_kept":136,"cut":false,"hidden":true,"merged":[]}
[null,"auto_open_Load()"]
[null,{"$f":"Initialise()","v":{"$error":"#N/A"}}]
[null,{"$f":"RETURN()","v":true}]
[]
[null,"Initialise()"]
[null,"STEP()"]
[null,{"$f":"ACTIVATE(\"Calculator\")","v":true}]
[null,{"$f":"CALCULATION(3)","v":true}]
[null,{"$f":"FORMULA(Loan_Term_Default,!Loan_Term)","v":true}]
[null,"FORMULA(HSL_Servicing_Rate/100,!Working_servicing_rate)"]
[null,{"$f":"FORMULA(\"\",!Additional_expenses)","v":true}]
[null,{"$f":"FORMULA(\"\",!borrowers)","v":true}]
[null,{"$f":"FORMULA(1,!provider_code)","v":true}]
[null,{"$f":"FORMULA(1,!loan_type_code)","v":true}]
[null,{"$f":"FORMULA(\"\",!loan_amount)","v":true}]
[null,{"$f":"FORMULA(\"\",!security_value)","v":true}]
[null,{"$f":"FORMULA(1,!number_of_adults)","v":true}]
[null,{"$f":"FORMULA(\"\",!number_of_dependants)","v":true}]
[null,{"$f":"FORMULA(\"\",!annual_income_1PAYG)","v":true}]
[null,{"$f":"FORMULA(\"\",!annual_income_1)","v":true}]
[null,{"$f":"FORMULA(\"\",!annual_income_2PAYG)","v":true}]
[null,{"$f":"FORMULA(\"\",!annual_income_2)","v":true}]
[null,{"$f":"FORMULA(\"\",!annual_income_3PAYG)","v":true}]
[null,{"$f":"FORMULA(\"\",!annual_income_3)","v":true}]
[null,{"$f":"FORMULA(\"\",!annual_income_4PAYG)","v":true}]
[null,{"$f":"FORMULA(\"\",!annual_income_4)","v":true}]
[null,{"$f":"FORMULA(\"\",!Annual_Income1_Rental)","v":true}]
[null,{"$f":"FORMULA(\"\",!Annual_Income2_Rental)","v":true}]
[null,{"$f":"FORMULA(\"\",!Annual_Income3_Rental)","v":true}]
[null,{"$f":"FORMULA(\"\",!Annual_Income4_Rental)","v":true}]
[null,{"$f":"FORMULA(\"\",!other_income_1)","v":true}]
[null,{"$f":"FORMULA(\"\",!other_income_2)","v":true}]
[null,{"$f":"FORMULA(\"\",!other_mortgages)","v":true}]
[null,{"$f":"FORMULA(\"\",!other_loan_commitments)","v":true}]
[null,{"$f":"FORMULA(\"\",!Total_other_loan_commitments)","v":true}]
[null,{"$f":"FORMULA(\"\",!rent_and_expenses)","v":true}]
[null,{"$f":"FORMULA(\"\",!total_mortgages)","v":true}]
[null,{"$f":"FORMULA(\"\",!credit_card_limit)","v":true}]
[null,{"$f":"FORMULA(\"\",!broker_name)","v":true}]
[null,{"$f":"FORMULA(\"\",!broker_id_number)","v":true}]
[null,{"$f":"FORMULA(\"\",!Oth_inv1)","v":true}]
[null,{"$f":"FORMULA(\"\",!Oth_inv2)","v":true}]
[null,{"$f":"FORMULA(\"\",!Oth_inv3)","v":true}]
[null,{"$f":"FORMULA(\"\",!Oth_inv4)","v":true}]
[null,{"$f":"FORMULA(\"\",!Borrowers2)","v":true}]
[null,{"$f":"FORMULA(\"\",!Borrowers3)","v":true}]
[null,{"$f":"FORMULA(\"\",!Borrowers4)","v":true}]
[null,{"$f":"FORMULA(1,!#REF!)","v":true}]
[null,{"$f":"FORMULA(1,!#REF!)","v":true}]
[null,{"$f":"FORMULA(1,!#REF!)","v":true}]
[null,{"$f":"FORMULA(1,!#REF!)","v":true}]
[null,{"$f":"FORMULA(1,!#REF!)","v":true}]
[null,{"$f":"FORMULA(1,!MARR1)","v":true}]
[null,{"$f":"FORMULA(1,!MARR2)","v":true}]
[null,{"$f":"FORMULA(1,!MARR3)","v":true}]
[null,{"$f":"FORMULA(1,!MARR4)","v":true}]
[null,{"$f":"FORMULA(1,!#REF!)","v":true}]
[null,{"$f":"FORMULA(1,!#REF!)","v":true}]
[null,{"$f":"FORMULA(1,!#REF!)","v":true}]
[null,{"$f":"FORMULA(1,!#REF!)","v":true}]
[null,{"$f":"FORMULA(1,!SPOUSE1)","v":true}]
[null,{"$f":"FORMULA(1,!SPOUSE2)","v":true}]
[null,{"$f":"FORMULA(1,!SPOUSE3)","v":true}]
[null,{"$f":"FORMULA(\"\",!Untaxed_income)","v":true}]
[null,{"$f":"FORMULA(FALSE,!Investment)","v":true}]
[null,{"$f":"FORMULA(\"\",#REF!)","v":true}]
[null,{"$f":"FORMULA(\"\",#REF!)","v":true}]
[null,{"$f":"FORMULA(\"\",#REF!)","v":true}]
[null,{"$f":"FORMULA(\"\",#REF!)","v":true}]
[null,{"$f":"FORMULA(\"\",#REF!)","v":true}]
[null,{"$f":"FORMULA(\"\",#REF!)","v":true}]
[null,{"$f":"FORMULA(\"\",#REF!)","v":true}]
[null,{"$f":"FORMULA(\"\",#REF!)","v":true}]
[null,{"$f":"FORMULA(\"\",#REF!)","v":true}]
[null,{"$f":"FORMULA(\"\",#REF!)","v":true}]
[null,{"$f":"FORMULA(\"\",#REF!)","v":true}]
[null,{"$f":"FORMULA(\"\",#REF!)","v":true}]
[null,{"$f":"FORMULA(\"\",#REF!)","v":true}]
[null,{"$f":"FORMULA(\"\",#REF!)","v":true}]
[null,{"$f":"FORMULA(\"\",#REF!)","v":true}]
[null,{"$f":"FORMULA(\"\",#REF!)","v":true}]
[null,{"$f":"FORMULA(\"\",#REF!)","v":true}]
[null,{"$f":"FORMULA(\"\",#REF!)","v":true}]
[null,{"$f":"FORMULA(\"\",#REF!)","v":true}]
[null,{"$f":"FORMULA(\"\",#REF!)","v":true}]
[null,{"$f":"FORMULA(\"\",#REF!)","v":true}]
[null,{"$f":"FORMULA(\"\",#REF!)","v":true}]
[null,{"$f":"FORMULA(\"\",#REF!)","v":true}]
[null,{"$f":"FORMULA(\"\",#REF!)","v":true}]
[null,{"$f":"FORMULA(\"\",#REF!)","v":true}]
[null,{"$f":"FORMULA(\"\",#REF!)","v":true}]
[null,{"$f":"FORMULA(\"\",#REF!)","v":true}]
[null,{"$f":"FORMULA(\"\",#REF!)","v":true}]
[null,{"$f":"FORMULA(\"\",#REF!)","v":true}]
[null,{"$f":"FORMULA(\"\",#REF!)","v":true}]
[null,{"$f":"FORMULA(\"\",#REF!)","v":true}]
[null,{"$f":"FORMULA(\"\",#REF!)","v":true}]
[null,{"$f":"FORMULA(\"\",#REF!)","v":true}]
[null,{"$f":"FORMULA(\"\",#REF!)","v":true}]
[null,{"$f":"FORMULA(\"\",#REF!)","v":true}]
[null,{"$f":"FORMULA(\"\",#REF!)","v":true}]
[null,{"$f":"FORMULA(\"\",#REF!)","v":true}]
[null,{"$f":"FORMULA(\"\",#REF!)","v":true}]
[null,{"$f":"FORMULA(\"\",#REF!)","v":true}]
[null,{"$f":"FORMULA(\"\",#REF!)","v":true}]
[null,{"$f":"FORMULA(\"\",#REF!)","v":true}]
[null,{"$f":"FORMULA(\"\",#REF!)","v":true}]
[null,{"$f":"FORMULA(\"\",#REF!)","v":true}]
[null,{"$f":"FORMULA(\"\",#REF!)","v":true}]
[null,{"$f":"FORMULA(\"\",#REF!)","v":true}]
[null,{"$f":"FORMULA(\"\",#REF!)","v":true}]
[null,{"$f":"FORMULA(\"\",#REF!)","v":true}]
[null,{"$f":"FORMULA(\"\",#REF!)","v":true}]
[null,{"$f":"FORMULA(\"\",#REF!)","v":true}]
[null,{"$f":"FORMULA(\"\",#REF!)","v":true}]
[null,{"$f":"FORMULA(\"\",#REF!)","v":true}]
[null,{"$f":"FORMULA(\"\",#REF!)","v":true}]
[null,{"$f":"FORMULA(\"\",#REF!)","v":true}]
[null,{"$f":"FORMULA(\"\",#REF!)","v":true}]
[null,{"$f":"FORMULA(\"\",#REF!)","v":true}]
[null,{"$f":"FORMULA(\"\",#REF!)","v":true}]
[null,{"$f":"FORMULA(\"\",#REF!)","v":true}]
[null,{"$f":"FORMULA(\"\",#REF!)","v":true}]
[null,{"$f":"FORMULA(\"\",#REF!)","v":true}]
[null,{"$f":"FORMULA(\"\",#REF!)","v":true}]
[null,{"$f":"FORMULA(\"\",#REF!)","v":true}]
[null,{"$f":"FORMULA(\"\",#REF!)","v":true}]
[null,{"$f":"FORMULA(\"\",#REF!)","v":true}]
[null,{"$f":"FORMULA(\"\",#REF!)","v":true}]
[null,{"$f":"CALCULATION(1)","v":true}]
[null,{"$f":"RETURN()","v":true}]
[]
[]
[null,"Print_it()"]
[null,{"$f":"PRINT.PREVIEW()","v":false}]
[null,{"$f":"RETURN()","v":true}]

{"sheet":"Postcode Lookup Tool","index":3,"n_rows":343,"n_cols":11,"rows_kept":343,"cut":false,"hidden":false,"merged":[]}
[]
[null,null,"Restricted and Inner City Postcodes"]
[]
[]
[]
[null,null,null,"<<< Enter full postcode and click search"]
[]
[]
[]
[]
[null,null,"POSTCODE","STATE","SUBURB","PROPERTY TYPE","LOAN\nPURPOSE","LOAN TYPE","POLICY","POLICY\nEXCLUSIONS","EFFECTIVE DATE"]
[null,null,800,"NT","Darwin City, Darwin","Apartment","Non Owner Occupied","All","For non-owner occupied apartments LMI is required where LVR is more than 70%","Not Applicable","2023-07-20"]
[null,null,800,"NT","Darwin City, Darwin","All","All","All","Maximum LVR = 80% (including LMI capitalisation)","DT Approved","2023-07-20"]
[null,null,820,"NT","Bayview, Charles Darwin, Coonawarra, East Point, Eaton, Fannie Bay, Larrakeyah, Ludmilla, Parap, Stuart Park","All","All","All","Maximum LVR = 80% (including LMI capitalisation)","DT Approved","2025-09-02"]
[null,null,2000,"NSW","Barangaroo, Dawes Point, Haymarket, Millers Point, Sydney, The Rocks","Apartment","Non Owner Occupied","All","Maximum LVR = 80% (including LMI capitalisation)","DT Approved","2025-09-02"]
[null,null,2000,"NSW","Sydney CBD","Apartment","Non Owner Occupied","All","For non-owner occupied apartments LMI is required where LVR is more than 70%","Not Applicable","2023-07-20"]
[null,null,2007,"NSW","Ultimo","Apartment","Non Owner Occupied","All","Maximum LVR = 80% (including LMI capitalisation)","DT Approved","2025-09-02"]
[null,null,2008,"NSW","Chippendale, Darlington","Apartment","Non Owner Occupied","All","Maximum LVR = 80% (including LMI capitalisation)","DT Approved","2025-09-02"]
[null,null,2017,"NSW","Waterloo, Zetland","Apartment","Non Owner Occupied","All","For non-owner occupied apartments LMI is required where LVR is more than 70%","Not Applicable","2023-07-20"]
[null,null,2017,"NSW","Waterloo, Zetland","Apartment","All","All","Maximum LVR = 80% (including LMI capitalisation)","DT Approved","2025-09-02"]
[null,null,2018,"NSW","Eastlakes, Rosebery","Apartment","All","All","Maximum LVR = 80% (including LMI capitalisation)","DT Approved","2023-07-20"]
[null,null,2019,"NSW","Banksmeadow, Botany","Apartment","All","All","Maximum LVR = 80% (including LMI capitalisation)","DT Approved","2018-07-14"]
[null,null,2020,"NSW","Mascot","Apartment","All","All","Maximum LVR = 80% (including LMI capitalisation)","DT Approved","2023-07-20"]
[null,null,2050,"NSW","Camperdown","Apartment","Non Owner Occupied","All","Maximum LVR = 80% (including LMI capitalisation)","DT Approved","2025-09-02"]
[null,null,2127,"NSW","Newington, Sydney Olympic Park, Wentworth Point","Apartment","Non Owner Occupied","All","Maximum LVR = 80% (including LMI capitalisation)","DT Approved","2023-07-20"]
[null,null,2128,"NSW","Silverwater","Apartment","Non Owner Occupied","All","Maximum LVR = 80% (including LMI capitalisation)","DT Approved","2023-07-20"]
[null,null,2131,"NSW","Ashfield","Apartment","All","All","Maximum LVR = 80% (including LMI capitalisation)","DT Approved","2025-09-02"]
[null,null,2134,"NSW","Burwood","Apartment","All","All","Maximum LVR = 80% (including LMI capitalisation)","DT Approved","2023-07-20"]
[null,null,2135,"NSW","Strathfield","Apartment","All","All","Maximum LVR = 80% (including LMI capitalisation)","DT Approved","2023-07-20"]
[null,null,2136,"NSW","Burwood Heights, Enfield, Strathfield South","Apartment","All","All","Maximum LVR = 80% (including LMI capitalisation)","DT Approved","2023-07-20"]
[null,null,2140,"NSW","Homebush, Homebush West","Apartment","All","All","Maximum LVR = 80% (including LMI capitalisation)","DT Approved","2018-07-14"]
[null,null,2141,"NSW","Berala, Lidcombe, Rookwood","Apartment","Non Owner Occupied","All","Maximum LVR = 80% (including LMI capitalisation)","DT Approved","2023-07-20"]
[null,null,2142,"NSW","Camellia, Clyde, Granville, Holroyd, Rosehill, South Granville","All","All","All","Maximum LVR = 80% (including LMI capitalisation)","DT Approved","2025-09-02"]
[null,null,2143,"NSW","Birrong, Potts Hill, Regents Park","Apartment","Non Owner Occupied","All","Maximum LVR = 80% (including LMI capitalisation)","DT Approved","2023-07-20"]
[null,null,2144,"NSW","Auburn","Apartment","Non Owner Occupied","All","Maximum LVR = 80% (including LMI capitalisation)","DT Approved","2023-07-20"]
[null,null,2150,"NSW","Harris Park, Parramatta","Apartment","All","All","Maximum LVR = 80% (including LMI capitalisation)","DT Approved","2018-07-14"]
[null,null,2160,"NSW","Merrylands, Merrylands West","All","All","All","Maximum LVR = 80% (including LMI capitalisation)","DT Approved","2025-09-02"]
[null,null,2161,"NSW","Guildford, Guildford West, Old Guildford, Yennora","All","All","All","Maximum LVR = 80% (including LMI capitalisation)","DT Approved","2025-09-02"]
[null,null,2162,"NSW","Chester Hill, Sefton","All","All","All","Maximum LVR = 80% (including LMI capitalisation)","DT Approved","2025-09-02"]
[null,null,2164,"NSW","Smithfield, Wetherill Park, Woodpark","All","All","All","Maximum LVR = 80% (including LMI capitalisation)","DT Approved","2025-09-02"]
[null,null,2165,"NSW","Fairfield, Fairfield East, Fairfield Heights, Fairfield West","All","All","All","Maximum LVR = 80% (including LMI capitalisation)","DT Approved","2025-09-02"]
[null,null,2190,"NSW","Chullora, Greenacre","Apartment","All","All","Maximum LVR = 80% (including LMI capitalisation)","DT Approved","2025-09-02"]
[null,null,2191,"NSW","Belfield","Apartment","All","All","Maximum LVR = 80% (including LMI capitalisation)","DT Approved","2025-09-02"]
[null,null,2192,"NSW","Belmore","Apartment","All","All","Maximum LVR = 80% (including LMI capitalisation)","DT Approved","2025-09-02"]
[null,null,2193,"NSW","Ashbury, Canterbury, Hurlstone Park","Apartment","All","All","Maximum LVR = 80% (including LMI capitalisation)","DT Approved","2023-07-20"]
[null,null,2194,"NSW","Campsie","Apartment","All","All","Maximum LVR = 80% (including LMI capitalisation)","DT Approved","2023-07-20"]
[null,null,2195,"NSW","Lakemba, Wiley Park","Apartment","All","All","Maximum LVR = 80% (including LMI capitalisation)","DT Approved","2018-07-14"]
[null,null,2196,"NSW","Punchbowl, Roselands","Apartment","All","All","Maximum LVR = 80% (including LMI capitalisation)","DT Approved","2025-09-02"]
[null,null,2197,"NSW","Bass Hill","All","All","All","Maximum LVR = 80% (including LMI capitalisation)","DT Approved","2023-07-20"]
[null,null,2198,"NSW","Georges Hall","All","All","All","Maximum LVR = 80% (including LMI capitalisation)","DT Approved","2023-07-20"]
[null,null,2199,"NSW","Yagoona","Apartment","Non Owner Occupied","All","Maximum LVR = 80% (including LMI capitalisation)","DT Approved","2025-09-02"]
[null,null,2200,"NSW","Bankstown, Bankstown Aerodrome, Condell Park, Mount Lewis","Apartment","All","All","Maximum LVR = 80% (including LMI capitalisation)","DT Approved","2025-09-02"]
[null,null,2205,"NSW","Arncliffe, Turrella, Wolli Creek","Apartment","All","All","Maximum LVR = 80% (including LMI capitalisation)","DT Approved","2018-07-14"]
[null,null,2209,"NSW","Beverly Hills, Narwee","Apartment","Non Owner Occupied","All","Maximum LVR = 80% (including LMI capitalisation)","DT Approved","2025-09-02"]
[null,null,2210,"NSW","Lugarno, Peakhurst, Peakhurst Heights, Riverwood","Apartment","Non Owner Occupied","All","Maximum LVR = 80% (including LMI capitalisation)","DT Approved","2025-09-02"]
[null,null,2211,"NSW","Padstow, Padstow Heights","Apartment","All","All","Maximum LVR = 80% (including LMI capitalisation)","DT Approved","2025-09-02"]
[null,null,2212,"NSW","Revesby, Revesby Heights","Apartment","All","All","Maximum LVR = 80% (including LMI capitalisation)","DT Approved","2025-09-02"]
[null,null,2213,"NSW","East Hills, Panania, Picnic Point","Apartment","All","All","Maximum LVR = 80% (including LMI capitalisation)","DT Approved","2025-09-02"]
[null,null,2216,"NSW","Banksia, Brighton-Le-Sands, Kyeemagh, Rockdale","Apartment","All","All","Maximum LVR = 80% (including LMI capitalisation)","DT Approved","2023-07-20"]
[null,null,2217,"NSW","Beverley Park, Kogarah, Kogarah Bay, Monterey, Ramsgate, Ramsgate Beach","Apartment","All","All","Maximum LVR = 80% (including LMI capitalisation)","DT Approved","2023-07-20"]
[null,null,2218,"NSW","Allawah, Carlton","Apartment","Non Owner Occupied","All","Maximum LVR = 80% (including LMI capitalisation)","DT Approved","2025-09-02"]
[null,null,2220,"NSW","Hurstville, Hurstville Grove","Apartment","Non Owner Occupied","All","Maximum LVR = 80% (including LMI capitalisation)","DT Approved","2025-09-02"]
[null,null,2221,"NSW","Blakehurst, Carss Park, Connells Point, Kyle Bay, South Hurstville","Apartment","Non Owner Occupied","All","Maximum LVR = 80% (including LMI capitalisation)","DT Approved","2025-09-02"]
[null,null,2222,"NSW","Penshurst","Apartment","Non Owner Occupied","All","Maximum LVR = 80% (including LMI capitalisation)","DT Approved","2025-09-02"]
[null,null,2880,"NSW","Broken Hill, Broughams Gate, Fowlers Gap, Little Topar, Milparinka, Mutawintji, Packsaddle, Silverton, Tibooburra","All","Owner Occupied","Principal and Interest or Interest Only (Construction)","Maximum LVR = 80% (including LMI capitalisation)","DT Approved","2025-09-02"]
[null,null,2880,"NSW","Broken Hill, Broughams Gate, Fowlers Gap, Little Topar, Milparinka, Mutawintji, Packsaddle, Silverton, Tibooburra","All","Owner Occupied","Interest Only (Non-Construction) or Line of Credit","Maximum LVR = 80% (including LMI capitalisation)","DT Approved","2025-09-02"]
[null,null,2880,"NSW","Broken Hill, Broughams Gate, Fowlers Gap, Little Topar, Milparinka, Mutawintji, Packsaddle, Silverton, Tibooburra","All","Non Owner Occupied","All","Maximum LVR = 80% (including LMI capitalisation)","DT Approved","2025-09-02"]
[null,null,3000,"VIC","Melbourne Central Business District (CBD)","Apartment","Non Owner Occupied","All","For non-owner occupied apartments LMI is required where LVR is more than 70%","Not Applicable","2023-07-20"]
[null,null,3004,"VIC","Melbourne, St Kilda Road Central","Apartment","Non Owner Occupied","All","For non-owner occupied apartments LMI is required where LVR is more than 70%","Not Applicable","2023-07-20"]
[null,null,3006,"VIC","Southbank","Apartment","Non Owner Occupied","All","For non-owner occupied apartments LMI is required where LVR is more than 70%","Not Applicable","2023-07-20"]
[null,null,3008,"VIC","Docklands","Apartment","Non Owner Occupied","All","Maximum LVR = 80% (including LMI capitalisation)","DT Approved","2025-09-02"]
[null,null,3008,"VIC","Docklands","Apartment","Non Owner Occupied","All","For non-owner occupied apartments LMI is required where LVR is more than 70%","Not Applicable","2023-07-20"]
[null,null,3031,"VIC","Flemington, Kensington","Apartment","Non Owner Occupied","All","Maximum LVR = 80% (including LMI capitalisation)","DT Approved","2025-09-02"]
[null,null,3032,"VIC","Ascot Vale, Maribyrnong, Travancore","Apartment","Non Owner Occupied","All","Maximum LVR = 80% (including LMI capitalisation)","DT Approved","2025-09-02"]
[null,null,3039,"VIC","Moonee Ponds","Apartment","Non Owner Occupied","All","Maximum LVR = 80% (including LMI capitalisation)","DT Approved","2025-09-02"]
[null,null,3040,"VIC","Aberfeldie, Essendon, Essendon West","Apartment","Non Owner Occupied","All","Maximum LVR = 80% (including LMI capitalisation)","DT Approved","2025-09-02"]
[null,null,3041,"VIC","Essendon Fields, Essendon North, Strathmore, Strathmore Heights","Apartment","Non Owner Occupied","All","Maximum LVR = 80% (including LMI capitalisation)","DT Approved","2025-09-02"]
[null,null,3043,"VIC","Gladstone Park, Gowanbrae, Tullamarine","Apartment","Non Owner Occupied","All","Maximum LVR = 80% (including LMI capitalisation)","DT Approved","2025-09-02"]
[null,null,3044,"VIC","Pascoe Vale, Pascoe Vale South","Apartment","Non Owner Occupied","All","Maximum LVR = 80% (including LMI capitalisation)","DT Approved","2025-09-02"]
[null,null,3046,"VIC","Glenroy, Hadfield, Oak Park","Apartment","Non Owner Occupied","All","Maximum LVR = 80% (including LMI capitalisation)","DT Approved","2025-09-02"]
[null,null,3047,"VIC","Broadmeadows, Dallas, Jacana","Apartment","Non Owner Occupied","All","Maximum LVR = 80% (including LMI capitalisation)","DT Approved","2025-09-02"]
[null,null,3048,"VIC","Coolaroo, Meadow Heights","Apartment","Non Owner Occupied","All","Maximum LVR = 80% (including LMI capitalisation)","DT Approved","2025-09-02"]
[null,null,3049,"VIC","Attwood, Westmeadows","Apartment","Non Owner Occupied","All","Maximum LVR = 80% (including LMI capitalisation)","DT Approved","2025-09-02"]
[null,null,3061,"VIC","Campbellfield","Apartment","Non Owner Occupied","All","Maximum LVR = 80% (including LMI capitalisation)","DT Approved","2025-09-02"]
[null,null,3066,"VIC","Collingwood","Apartment","All","All","Maximum LVR = 80% (including LMI capitalisation)","DT Approved","2023-07-20"]
[null,null,3067,"VIC","Abbotsford","Apartment","All","All","Maximum LVR = 80% (including LMI capitalisation)","DT Approved","2018-07-14"]
[null,null,3068,"VIC","Clifton Hill, Fitzroy North","Apartment","Non Owner Occupied","All","Maximum LVR = 80% (including LMI capitalisation)","DT Approved","2025-09-02"]
[null,null,3144,"VIC","Kooyong, Malvern","Apartment","Non Owner Occupied","All","Maximum LVR = 80% (including LMI capitalisation)","DT Approved","2025-09-02"]
[null,null,3145,"VIC","Caulfield East, Malvern East","Apartment","Non Owner Occupied","All","Maximum LVR = 80% (including LMI capitalisation)","DT Approved","2025-09-02"]
[null,null,3434,"VIC","Cherokee, Kerrie, Romsey, Springfield","All","Owner Occupied","Principal and Interest or Interest Only (Construction)","Maximum LVR = 80% (including LMI capitalisation)","DT Approved","2025-09-02"]
[null,null,3434,"VIC","Cherokee, Kerrie, Romsey, Springfield","All","Owner Occupied","Interest Only (Non-Construction) or Line of Credit","Maximum LVR = 80% (including LMI capitalisation)","DT Approved","2025-09-02"]
[null,null,3434,"VIC","Cherokee, Kerrie, Romsey, Springfield","All","Non Owner Occupied","All","Maximum LVR = 80% (including LMI capitalisation)","DT Approved","2025-09-02"]
[null,null,3460,"VIC","Basalt, Daylesford","All","Owner Occupied","Principal and Interest or Interest Only (Construction)","Maximum LVR = 80% (including LMI capitalisation)","DT Approved","2025-09-02"]
[null,null,3460,"VIC","Basalt, Daylesford","All","Owner Occupied","Interest Only (Non-Construction) or Line of Credit","Maximum LVR = 80% (including LMI capitalisation)","DT Approved","2025-09-02"]
[null,null,3460,"VIC","Basalt, Daylesford","All","Non Owner Occupied","All","Maximum LVR = 80% (including LMI capitalisation)","DT Approved","2025-09-02"]
[null,null,3608,"VIC","Bailieston, Goulburn Weir, Graytown, Kirwans Bridge, Mitchellstown, Nagambie, Wahring, Wirrate","All","Owner Occupied","Principal and Interest or Interest Only (Construction)","Maximum LVR = 80% (including LMI capitalisation)","DT Approved","2025-09-02"]
[null,null,3608,"VIC","Bailieston, Goulburn Weir, Graytown, Kirwans Bridge, Mitchellstown, Nagambie, Wahring, Wirrate","All","Owner Occupied","Interest Only (Non-Construction) or Line of Credit","Maximum LVR = 80% (including LMI capitalisation)","DT Approved","2025-09-02"]
[null,null,3608,"VIC","Bailieston, Goulburn Weir, Graytown, Kirwans Bridge, Mitchellstown, Nagambie, Wahring, Wirrate","All","Non Owner Occupied","All","Maximum LVR = 80% (including LMI capitalisation)","DT Approved","2025-09-02"]
[null,null,3764,"VIC","Forbes, Glenaroua, High Camp, Kilmore, Kilmore East, Moranding, Tantaraboo, Willowmavin","All","Owner Occupied","Principal and Interest or Interest Only (Construction)","Maximum LVR = 80% (including LMI capitalisation)","DT Approved","2025-09-02"]
[null,null,3764,"VIC","Forbes, Glenaroua, High Camp, Kilmore, Kilmore East, Moranding, Tantaraboo, Willowmavin","All","Owner Occupied","Interest Only (Non-Construction) or Line of Credit","Maximum LVR = 80% (including LMI capitalisation)","DT Approved","2025-09-02"]
[null,null,3764,"VIC","Forbes, Glenaroua, High Camp, Kilmore, Kilmore East, Moranding, Tantaraboo, Willowmavin","All","Non Owner Occupied","All","Maximum LVR = 80% (including LMI capitalisation)","DT Approved","2025-09-02"]
[null,null,3799,"VIC","Big Pats Creek, East Warburton, Mcmahons Creek, Millgrove, Reefton, Warburton, Wesburn","All","Owner Occupied","Principal and Interest or Interest Only (Construction)","Maximum LVR = 80% (including LMI capitalisation)","DT Approved","2025-09-02"]
[null,null,3799,"VIC","Big Pats Creek, East Warburton, Mcmahons Creek, Millgrove, Reefton, Warburton, Wesburn","All","Owner Occupied","Interest Only (Non-Construction) or Line of Credit","Maximum LVR = 80% (including LMI capitalisation)","DT Approved","2025-09-02"]
[null,null,3799,"VIC","Big Pats Creek, East Warburton, Mcmahons Creek, Millgrove, Reefton, Warburton, Wesburn","All","Non Owner Occupied","All","Maximum LVR = 80% (including LMI capitalisation)","DT Approved","2025-09-02"]
[null,null,4000,"QLD","Brisbane CBD, Petrie Terrace, Spring Hill","Apartment","Non Owner Occupied","All","For non-owner occupied apartments LMI is required where LVR is more than 70%","Not Applicable","2023-07-20"]
[null,null,4006,"QLD","Bowens Hill, Fortitude Valley, Herston, Newstead","Apartment","Non Owner Occupied","All","Maximum LVR = 80% (including LMI capitalisation)","DT Approved","2023-07-20"]
[null,null,4006,"QLD","Bowens Hill, Fortitude Valley, Herston, Newstead","Apartment","Non Owner Occupied","All","For non-owner occupied apartments LMI is required where LVR is more than 70%","Not Applicable","2023-07-20"]
[null,null,4101,"QLD","Highgate Hill, South Brisbane, West End","Apartment","Non Owner Occupied","All","For non-owner occupied apartments LMI is required where LVR is more than 70%","Not Applicable","2023-07-20"]
[null,null,4169,"QLD","East Brisbane, Kangaroo Point","Apartment","Non Owner Occupied","All","Maximum LVR = 80% (including LMI capitalisation)","DT Approved","2025-09-02"]
[null,null,4357,"QLD","Bringalily, Bulli Creek, Canning Creek, Captains Mountain, Clontarf, Condamine Farms, Cypress Gardens, Domville, Forest Ridge, Grays Gate","All","Owner Occupied","Principal and Interest or Interest Only (Construction)","Maximum LVR = 80% (including LMI capitalisation)","DT Approved","2025-09-02"]
[null,null,4357,"QLD","Bringalily, Bulli Creek, Canning Creek, Captains Mountain, Clontarf, Condamine Farms, Cypress Gardens, Domville, Forest Ridge, Grays Gate","All","Owner Occupied","Interest Only (Non-Construction) or Line of Credit","Maximum LVR = 70% (including LMI capitalisation)","DT Approved","2025-09-02"]
[null,null,4357,"QLD","Bringalily, Bulli Creek, Canning Creek, Captains Mountain, Clontarf, Condamine Farms, Cypress Gardens, Domville, Forest Ridge, Grays Gate","All","Non Owner Occupied","All","Maximum LVR = 70% (including LMI capitalisation)","DT Approved","2025-09-02"]
[null,null,4401,"QLD","Acland, Aubigny, Balgowan, Biddeston, Boodua, Devon Park, Greenwood, Highland Plains, Kelvinhaugh, Mount Irving","All","Owner Occupied","Principal and Interest or Interest Only (Construction)","Maximum LVR = 80% (including LMI capitalisation)","DT Approved","2025-09-02"]
[null,null,4401,"QLD","Acland, Aubigny, Balgowan, Biddeston, Boodua, Devon Park, Greenwood, Highland Plains, Kelvinhaugh, Mount Irving","All","Owner Occupied","Interest Only (Non-Construction) or Line of Credit","Maximum LVR = 70% (including LMI capitalisation)","DT Approved","2025-09-02"]
[null,null,4401,"QLD","Acland, Aubigny, Balgowan, Biddeston, Boodua, Devon Park, Greenwood, Highland Plains, Kelvinhaugh, Mount Irving","All","Non Owner Occupied","All","Maximum LVR = 70% (including LMI capitalisation)","DT Approved","2025-09-02"]
[null,null,4403,"QLD","Brymaroo, Jondaryan, Malu, Mount Moriah, Quinalow, West Prairie","All","Owner Occupied","Principal and Interest or Interest Only (Construction)","Maximum LVR = 80% (including LMI capitalisation)","DT Approved","2025-09-02"]
[null,null,4403,"QLD","Brymaroo, Jondaryan, Malu, Mount Moriah, Quinalow, West Prairie","All","Owner Occupied","Interest Only (Non-Construction) or Line of Credit","Maximum LVR = 70% (including LMI capitalisation)","DT Approved","2025-09-02"]
[null,null,4403,"QLD","Brymaroo, Jondaryan, Malu, Mount Moriah, Quinalow, West Prairie","All","Non Owner Occupied","All","Maximum LVR = 70% (including LMI capitalisation)","DT Approved","2025-09-02"]
[null,null,4404,"QLD","Bowenville, Formartin, Irvingdale, Wainui","All","Owner Occupied","Principal and Interest or Interest Only (Construction)","Maximum LVR = 80% (including LMI capitalisation)","DT Approved","2025-09-02"]
[null,null,4404,"QLD","Bowenville, Formartin, Irvingdale, Wainui","All","Owner Occupied","Interest Only (Non-Construction) or Line of Credit","Maximum LVR = 70% (including LMI capitalisation)","DT Approved","2025-09-02"]
[null,null,4404,"QLD","Bowenville, Formartin, Irvingdale, Wainui","All","Non Owner Occupied","All","Maximum LVR = 70% (including LMI capitalisation)","DT Approved","2025-09-02"]
[null,null,4405,"QLD","Beelbee, Blaxland, Bunya Mountains, Dalby, Ducklo, Grassdale, Kumbarilla, Marmadua, Moola, Mowbullan","All","Owner Occupied","Principal and Interest or Interest Only (Construction)","Maximum LVR = 80% (including LMI capitalisation)","DT Approved","2023-07-20"]
[null,null,4405,"QLD","Beelbee, Blaxland, Bunya Mountains, Dalby, Ducklo, Grassdale, Kumbarilla, Marmadua, Moola, Mowbullan","All","Owner Occupied","Interest Only (Non-Construction) or Line of Credit","Maximum LVR = 70% (including LMI capitalisation)","DT Approved","2023-07-20"]
[null,null,4405,"QLD","Beelbee, Blaxland, Bunya Mountains, Dalby, Ducklo, Grassdale, Kumbarilla, Marmadua, Moola, Mowbullan","All","Non Owner Occupied","All","Maximum LVR = 70% (including LMI capitalisation)","DT Approved","2023-07-20"]
[null,null,4406,"QLD","Boondandilla, Hannaford, Jimbour East, Jimbour West, Kaimkillenbun, Kogan, Macalister, Moonie, Southwood, The Gums","All","Owner Occupied","Principal and Interest or Interest Only (Construction)","Maximum LVR = 80% (including LMI capitalisation)","DT Approved","2025-09-02"]
[null,null,4406,"QLD","Boondandilla, Hannaford, Jimbour East, Jimbour West, Kaimkillenbun, Kogan, Macalister, Moonie, Southwood, The Gums","All","Owner Occupied","Interest Only (Non-Construction) or Line of Credit","Maximum LVR = 70% (including LMI capitalisation)","DT Approved","2025-09-02"]
[null,null,4406,"QLD","Boondandilla, Hannaford, Jimbour East, Jimbour West, Kaimkillenbun, Kogan, Macalister, Moonie, Southwood, The Gums","All","Non Owner Occupied","All","Maximum LVR = 70% (including LMI capitalisation)","DT Approved","2025-09-02"]
[null,null,4407,"QLD","Cattle Creek, Cecil Plains, Dunmore, Halliford, Nangwee","All","Owner Occupied","Principal and Interest or Interest Only (Construction)","Maximum LVR = 80% (including LMI capitalisation)","DT Approved","2025-09-02"]
[null,null,4407,"QLD","Cattle Creek, Cecil Plains, Dunmore, Halliford, Nangwee","All","Owner Occupied","Interest Only (Non-Construction) or Line of Credit","Maximum LVR = 70% (including LMI capitalisation)","DT Approved","2025-09-02"]
[null,null,4407,"QLD","Cattle Creek, Cecil Plains, Dunmore, Halliford, Nangwee","All","Non Owner Occupied","All","Maximum LVR = 70% (including LMI capitalisation)","DT Approved","2025-09-02"]
[null,null,4413,"QLD","Auburn, Baking Board, Barakula, Blackswamp, Boonarga, Burncluith, Cameby, Canaga, Chances Plain, Chinchilla, Crossroads, Durah, Fairyland, Goombi, Greenswamp, Hopeland, Kragra, Montrose, Pelican, Red Hill, Rywung, Sujeewong, Wieambilla","All","Owner Occupied","Principal and Interest or Interest Only (Construction)","Maximum LVR = 80% (including LMI capitalisation)","DT Approved","2023-07-20"]
[null,null,4413,"QLD","Auburn, Baking Board, Barakula, Blackswamp, Boonarga, Burncluith, Cameby, Canaga, Chances Plain, Chinchilla, Crossroads, Durah, Fairyland, Goombi, Greenswamp, Hopeland, Kragra, Montrose, Pelican, Red Hill, Rywung, Sujeewong, Wieambilla","All","Owner Occupied","Interest Only (Non-Construction) or Line of Credit","Maximum LVR = 70% (including LMI capitalisation)","DT Approved","2023-07-20"]
[null,null,4413,"QLD","Auburn, Baking Board, Barakula, Blackswamp, Boonarga, Burncluith, Cameby, Canaga, Chances Plain, Chinchilla, Crossroads, Durah, Fairyland, Goombi, Greenswamp, Hopeland, Kragra, Montrose, Pelican, Red Hill, Rywung, Sujeewong, Wieambilla","All","Non Owner Occupied","All","Maximum LVR = 70% (including LMI capitalisation)","DT Approved","2023-07-20"]
[null,null,4415,"QLD","Columboola, Dalwogon, Gurulmundi, Hookswood, Kowguran, Miles, Myall Park, Pelham","All","Owner Occupied","Principal and Interest or Interest Only (Construction)","Maximum LVR = 80% (including LMI capitalisation)","DT Approved","2023-07-20"]
[null,null,4415,"QLD","Columboola, Dalwogon, Gurulmundi, Hookswood, Kowguran, Miles, Myall Park, Pelham","All","Owner Occupied","Interest Only (Non-Construction) or Line of Credit","Maximum LVR = 70% (including LMI capitalisation)","DT Approved","2023-07-20"]
[null,null,4415,"QLD","Columboola, Dalwogon, Gurulmundi, Hookswood, Kowguran, Miles, Myall Park, Pelham","All","Non Owner Occupied","All","Maximum LVR = 70% (including LMI capitalisation)","DT Approved","2023-07-20"]
[null,null,4421,"QLD","Goranba, Tara","All","Owner Occupied","Principal and Interest or Interest Only (Construction)","Maximum LVR = 80% (including LMI capitalisation)","DT Approved","2025-09-02"]
[null,null,4421,"QLD","Goranba, Tara","All","Owner Occupied","Interest Only (Non-Construction) or Line of Credit","Maximum LVR = 70% (including LMI capitalisation)","DT Approved","2025-09-02"]
[null,null,4421,"QLD","Goranba, Tara","All","Non Owner Occupied","All","Maximum LVR = 70% (including LMI capitalisation)","DT Approved","2025-09-02"]
[null,null,4428,"QLD","Pickanjinnie, Waikola, Wallumbilla, Wallumbilla North, Wallumbilla South","All","Owner Occupied","Principal and Interest or Interest Only (Construction)","Maximum LVR = 80% (including LMI capitalisation)","DT Approved","2025-09-02"]
[null,null,4428,"QLD","Pickanjinnie, Waikola, Wallumbilla, Wallumbilla North, Wallumbilla South","All","Owner Occupied","Interest Only (Non-Construction) or Line of Credit","Maximum LVR = 70% (including LMI capitalisation)","DT Approved","2025-09-02"]
[null,null,4428,"QLD","Pickanjinnie, Waikola, Wallumbilla, Wallumbilla North, Wallumbilla South","All","Non Owner Occupied","All","Maximum LVR = 70% (including LMI capitalisation)","DT Approved","2025-09-02"]
[null,null,4455,"QLD","Ballaroo, Blythdale, Bungeworgorai, Bungil, Bymount, Cornwall, Dargal Road, Eumamurrin, Euthulla, Gunnewin, Hodgson, Mooga, Mount Abundance, Mount Bindango, Orallo, Orange Hill, Roma, Tingun, Wycombe","All","Owner Occupied","Principal and Interest or Interest Only (Construction)","Maximum LVR = 80% (including LMI capitalisation)","DT Approved","2020-02-29"]
[null,null,4455,"QLD","Ballaroo, Blythdale, Bungeworgorai, Bungil, Bymount, Cornwall, Dargal Road, Eumamurrin, Euthulla, Gunnewin, Hodgson, Mooga, Mount Abundance, Mount Bindango, Orallo, Orange Hill, Roma, Tingun, Wycombe","All","Owner Occupied","Interest Only (Non-Construction) or Line of Credit","Maximum LVR = 70% (including LMI capitalisation)","DT Approved","2020-02-29"]
[null,null,4455,"QLD","Ballaroo, Blythdale, Bungeworgorai, Bungil, Bymount, Cornwall, Dargal Road, Eumamurrin, Euthulla, Gunnewin, Hodgson, Mooga, Mount Abundance, Mount Bindango, Orallo, Orange Hill, Roma, Tingun, Wycombe","All","Non Owner Occupied","All","Maximum LVR = 70% (including LMI capitalisation)","DT Approved","2015-09-19"]
[null,null,4461,"QLD","Muckadilla","All","Owner Occupied","Principal and Interest or Interest Only (Construction)","Maximum LVR = 80% (including LMI capitalisation)","DT Approved","2025-09-02"]
[null,null,4461,"QLD","Muckadilla","All","Owner Occupied","Interest Only (Non-Construction) or Line of Credit","Maximum LVR = 70% (including LMI capitalisation)","DT Approved","2025-09-02"]
[null,null,4461,"QLD","Muckadilla","All","Non Owner Occupied","All","Maximum LVR = 70% (including LMI capitalisation)","DT Approved","2025-09-02"]
[null,null,4462,"QLD","Amby, Eurella, Walhallow","All","Owner Occupied","Principal and Interest or Interest Only (Construction)","Maximum LVR = 80% (including LMI capitalisation)","DT Approved","2025-09-02"]
[null,null,4462,"QLD","Amby, Eurella, Walhallow","All","Owner Occupied","Interest Only (Non-Construction) or Line of Credit","Maximum LVR = 70% (including LMI capitalisation)","DT Approved","2025-09-02"]
[null,null,4462,"QLD","Amby, Eurella, Walhallow","All","Non Owner Occupied","All","Maximum LVR = 70% (including LMI capitalisation)","DT Approved","2025-09-02"]
[null,null,4465,"QLD","Bargunyah, Dunkeld, Forestvale, Kilmorey Falls, Mitchell, Mount Moffatt, V Gate, Womalilla, Womblebank","All","Owner Occupied","Principal and Interest or Interest Only (Construction)","Maximum LVR = 80% (including LMI capitalisation)","DT Approved","2025-09-02"]
[null,null,4465,"QLD","Bargunyah, Dunkeld, Forestvale, Kilmorey Falls, Mitchell, Mount Moffatt, V Gate, Womalilla, Womblebank","All","Owner Occupied","Interest Only (Non-Construction) or Line of Credit","Maximum LVR = 70% (including LMI capitalisation)","DT Approved","2025-09-02"]
[null,null,4465,"QLD","Bargunyah, Dunkeld, Forestvale, Kilmorey Falls, Mitchell, Mount Moffatt, V Gate, Womalilla, Womblebank","All","Non Owner Occupied","All","Maximum LVR = 70% (including LMI capitalisation)","DT Approved","2025-09-02"]
[null,null,4677,"QLD","Agnes Water, Captain Creek, Colosseum, Eurimbula, Miriam Vale, Mount Tom, Round Hill, Seventeen Seventy","All","Owner Occupied","Principal and Interest or Interest Only (Construction)","Maximum LVR = 80% (including LMI capitalisation)","DT Approved","2023-07-20"]
[null,null,4677,"QLD","Agnes Water, Captain Creek, Colosseum, Eurimbula, Miriam Vale, Mount Tom, Round Hill, Seventeen Seventy","All","Owner Occupied","Interest Only (Non-Construction) or Line of Credit","Maximum LVR = 80% (including LMI capitalisation)","DT Approved","2023-07-20"]
[null,null,4677,"QLD","Agnes Water, Captain Creek, Colosseum, Eurimbula, Miriam Vale, Mount Tom, Round Hill, Seventeen Seventy","All","Non Owner Occupied","All","Maximum LVR = 80% (including LMI capitalisation)","DT Approved","2023-07-20"]
[null,null,4678,"QLD","Bororen, Foreshores, Rodds Bay, Turkey Beach","All","Owner Occupied","Principal and Interest or Interest Only (Construction)","Maximum LVR = 80% (including LMI capitalisation)","DT Approved","2021-08-30"]
[null,null,4678,"QLD","Bororen, Foreshores, Rodds Bay, Turkey Beach","All","Owner Occupied","Interest Only (Non-Construction) or Line of Credit","Maximum LVR = 80% (including LMI capitalisation)","DT Approved","2021-08-30"]
[null,null,4678,"QLD","Bororen, Foreshores, Rodds Bay, Turkey Beach","All","Non Owner Occupied","All","Maximum LVR = 80% (including LMI capitalisation)","DT Approved","2021-08-30"]
[null,null,4680,"QLD","Gladstone","All","Owner Occupied","Principal and Interest or Interest Only (Construction)","Maximum LVR = 80% (including LMI capitalisation)","DT Approved","2021-08-30"]
[null,null,4680,"QLD","Gladstone","All","Owner Occupied","Interest Only (Non-Construction) or Line of Credit","Maximum LVR = 80% (including LMI capitalisation)","DT Approved","2021-08-30"]
[null,null,4680,"QLD","Gladstone","All","Non Owner Occupied","All","Maximum LVR = 80% (including LMI capitalisation)","DT Approved","2021-08-30"]
[null,null,4707,"QLD","Collaroy, St Lawrence","All","Owner Occupied","Principal and Interest or Interest Only (Construction)","Maximum LVR = 80% (including LMI capitalisation)","DT Approved","2023-07-20"]
[null,null,4707,"QLD","Collaroy, St Lawrence","All","Owner Occupied","Interest Only (Non-Construction) or Line of Credit","Maximum LVR = 70% (including LMI capitalisation)","DT Approved","2023-07-20"]
[null,null,4707,"QLD","Collaroy, St Lawrence","All","Non Owner Occupied","All","Maximum LVR = 70% (including LMI capitalisation)","DT Approved","2023-07-20"]
[null,null,4715,"QLD","Biloela, Callide, Castle Creek, Dakenba, Dumgree, Greycliffe, Mount Murchison, Orange Creek, Prospect, Tarramba, Valentine Plains","All","Owner Occupied","Principal and Interest or Interest Only (Construction)","Maximum LVR = 80% (including LMI capitalisation)","DT Approved","2021-08-30"]
[null,null,4715,"QLD","Biloela, Callide, Castle Creek, Dakenba, Dumgree, Greycliffe, Mount Murchison, Orange Creek, Prospect, Tarramba, Valentine Plains","All","Owner Occupied","Interest Only (Non-Construction) or Line of Credit","Maximum LVR = 80% (including LMI capitalisation)","DT Approved","2021-08-30"]
[null,null,4715,"QLD","Biloela, Callide, Castle Creek, Dakenba, Dumgree, Greycliffe, Mount Murchison, Orange Creek, Prospect, Tarramba, Valentine Plains","All","Non Owner Occupied","All","Maximum LVR = 80% (including LMI capitalisation)","DT Approved","2021-08-30"]
[null,null,4717,"QLD","Blackwater","All","Owner Occupied","Principal and Interest or Interest Only (Construction)","Maximum LVR = 80% (including LMI capitalisation)","DT Approved","2023-07-20"]
[null,null,4717,"QLD","Blackwater","All","Owner Occupied","Interest Only (Non-Construction) or Line of Credit","Maximum LVR = 80% (including LMI capitalisation)","DT Approved","2023-07-20"]
[null,null,4717,"QLD","Blackwater","All","Non Owner Occupied","All","Maximum LVR = 80% (including LMI capitalisation)","DT Approved","2023-07-20"]
[null,null,4720,"QLD","Emerald, Yamala","All","Owner Occupied","Principal and Interest or Interest Only (Construction)","Maximum LVR = 80% (including LMI capitalisation)","DT Approved","2021-08-30"]
[null,null,4720,"QLD","Emerald, Yamala","All","Owner Occupied","Interest Only (Non-Construction) or Line of Credit","Maximum LVR = 80% (including LMI capitalisation)","DT Approved","2021-08-30"]
[null,null,4720,"QLD","Emerald, Yamala","All","Non Owner Occupied","All","Maximum LVR = 80% (including LMI capitalisation)","DT Approved","2021-08-30"]
[null,null,4721,"QLD","Argyll, Clermont, Elgin, Frankfield, Gemini Mountains, Kilcummin, Laglan, Mistake Creek, Pasha, Peak Vale","All","Owner Occupied","Principal and Interest or Interest Only (Construction)","Maximum LVR = 80% (including LMI capitalisation)","DT Approved","2023-07-20"]
[null,null,4721,"QLD","Argyll, Clermont, Elgin, Frankfield, Gemini Mountains, Kilcummin, Laglan, Mistake Creek, Pasha, Peak Vale","All","Owner Occupied","Interest Only (Non-Construction) or Line of Credit","Maximum LVR = 70% (including LMI capitalisation)","DT Approved","2023-07-20"]
[null,null,4721,"QLD","Argyll, Clermont, Elgin, Frankfield, Gemini Mountains, Kilcummin, Laglan, Mistake Creek, Pasha, Peak Vale","All","Non Owner Occupied","All","Maximum LVR = 70% (including LMI capitalisation)","DT Approved","2023-07-20"]
[null,null,4723,"QLD","Belcong, Capella, Carbine Creek, Chirnside, Crinum, Hibernia, Khosh Bulduk, Lilyvale, Lowestoff, Mount Macarthur","All","Owner Occupied","Principal and Interest or Interest Only (Construction)","Maximum LVR = 80% (including LMI capitalisation)","DT Approved","2023-07-20"]
[null,null,4723,"QLD","Belcong, Capella, Carbine Creek, Chirnside, Crinum, Hibernia, Khosh Bulduk, Lilyvale, Lowestoff, Mount Macarthur","All","Owner Occupied","Interest Only (Non-Construction) or Line of Credit","Maximum LVR = 80% (including LMI capitalisation)","DT Approved","2023-07-20"]
[null,null,4723,"QLD","Belcong, Capella, Carbine Creek, Chirnside, Crinum, Hibernia, Khosh Bulduk, Lilyvale, Lowestoff, Mount Macarthur","All","Non Owner Occupied","All","Maximum LVR = 80% (including LMI capitalisation)","DT Approved","2023-07-20"]
[null,null,4737,"QLD","Armstrong Beach, Blue Mountain, Campwin Beach, Freshwater Point, Sarina, Sarina Beach, Sarina Range, Sunnyside","All","Owner Occupied","Principal and Interest or Interest Only (Construction)","Maximum LVR = 80% (including LMI capitalisation)","DT Approved","2021-08-30"]
[null,null,4737,"QLD","Armstrong Beach, Blue Mountain, Campwin Beach, Freshwater Point, Sarina, Sarina Beach, Sarina Range, Sunnyside","All","Owner Occupied","Interest Only (Non-Construction) or Line of Credit","Maximum LVR = 80% (including LMI capitalisation)","DT Approved","2021-08-30"]
[null,null,4737,"QLD","Armstrong Beach, Blue Mountain, Campwin Beach, Freshwater Point, Sarina, Sarina Beach, Sarina Range, Sunnyside","All","Non Owner Occupied","All","Maximum LVR = 80% (including LMI capitalisation)","DT Approved","2021-08-30"]
[null,null,4738,"QLD","Ilbilbie, Koumala","All","Owner Occupied","Principal and Interest or Interest Only (Construction)","Maximum LVR = 80% (including LMI capitalisation)","DT Approved","2023-07-20"]
[null,null,4738,"QLD","Ilbilbie, Koumala","All","Owner Occupied","Interest Only (Non-Construction) or Line of Credit","Maximum LVR = 70% (including LMI capitalisation)","DT Approved","2023-07-20"]
[null,null,4738,"QLD","Ilbilbie, Koumala","All","Non Owner Occupied","All","Maximum LVR = 70% (including LMI capitalisation)","DT Approved","2023-07-20"]
[null,null,4739,"QLD","Carmila","All","Owner Occupied","Principal and Interest or Interest Only (Construction)","Maximum LVR = 80% (including LMI capitalisation)","DT Approved","2023-07-20"]
[null,null,4739,"QLD","Carmila","All","Owner Occupied","Interest Only (Non-Construction) or Line of Credit","Maximum LVR = 70% (including LMI capitalisation)","DT Approved","2023-07-20"]
[null,null,4739,"QLD","Carmila","All","Non Owner Occupied","All","Maximum LVR = 70% (including LMI capitalisation)","DT Approved","2023-07-20"]
[null,null,4740,"QLD","Mackay Region","All","Owner Occupied","Principal and Interest or Interest Only (Construction)","Maximum LVR = 80% (including LMI capitalisation)","DT Approved","2021-08-30"]
[null,null,4740,"QLD","Mackay Region","All","Owner Occupied","Interest Only (Non-Construction) or Line of Credit","Maximum LVR = 80% (including LMI capitalisation)","DT Approved","2021-08-30"]
[null,null,4740,"QLD","Mackay Region","All","Non Owner Occupied","All","Maximum LVR = 80% (including LMI capitalisation)","DT Approved","2021-08-30"]
[null,null,4741,"QLD","Ball Bay , Brightly , Clairview , Coppabella , Epsom , Eton , Eungella Hinterland , Farleigh , Gargett , Hampden , Hazledean , Kinchant Dam , Kuttabul, Mount Charlton , Mount Ossa , Mount Pelion , North Eton , Oakenden , Owens Creek , Pinnacle , Pleystowe , Seaforth , Yalboroo","All","Owner Occupied","Principal and Interest or Interest Only (Construction)","Maximum LVR = 80% (including LMI capitalisation)","DT Approved","2023-07-20"]
[null,null,4741,"QLD","Ball Bay , Brightly , Clairview , Coppabella , Epsom , Eton , Eungella Hinterland , Farleigh , Gargett , Hampden , Hazledean , Kinchant Dam , Kuttabul, Mount Charlton , Mount Ossa , Mount Pelion , North Eton , Oakenden , Owens Creek , Pinnacle , Pleystowe , Seaforth , Yalboroo","All","Owner Occupied","Interest Only (Non-Construction) or Line of Credit","Maximum LVR = 70% (including LMI capitalisation)","DT Approved","2023-07-20"]
[null,null,4741,"QLD","Ball Bay , Brightly , Clairview , Coppabella , Epsom , Eton , Eungella Hinterland , Farleigh , Gargett , Hampden , Hazledean , Kinchant Dam , Kuttabul, Mount Charlton , Mount Ossa , Mount Pelion , North Eton , Oakenden , Owens Creek , Pinnacle , Pleystowe , Seaforth , Yalboroo","All","Non Owner Occupied","All","Maximum LVR = 70% (including LMI capitalisation)","DT Approved","2023-07-20"]
[null,null,4742,"QLD","Burton , Eaglefield , Elphinstone , Hail Creek , Kemmis , Mount Britton , Nebo , Oxford , Strathfield , Turrawulla , Valkyrie","All","Owner Occupied","Principal and Interest or Interest Only (Construction)","Maximum LVR = 80% (including LMI capitalisation)","DT Approved","2023-07-20"]
[null,null,4742,"QLD","Burton , Eaglefield , Elphinstone , Hail Creek , Kemmis , Mount Britton , Nebo , Oxford , Strathfield , Turrawulla , Valkyrie","All","Owner Occupied","Interest Only (Non-Construction) or Line of Credit","Maximum LVR = 70% (including LMI capitalisation)","DT Approved","2023-07-20"]
[null,null,4742,"QLD","Burton , Eaglefield , Elphinstone , Hail Creek , Kemmis , Mount Britton , Nebo , Oxford , Strathfield , Turrawulla , Valkyrie","All","Non Owner Occupied","All","Maximum LVR = 70% (including LMI capitalisation)","DT Approved","2023-07-20"]
[null,null,4743,"QLD","Suttor, Glenden","All","Owner Occupied","Principal and Interest or Interest Only (Construction)","Maximum LVR = 80% (including LMI capitalisation)","DT Approved","2023-07-20"]
[null,null,4743,"QLD","Suttor, Glenden","All","Owner Occupied","Interest Only (Non-Construction) or Line of Credit","Maximum LVR = 70% (including LMI capitalisation)","DT Approved","2023-07-20"]
[null,null,4743,"QLD","Suttor, Glenden","All","Non Owner Occupied","All","Maximum LVR = 70% (including LMI capitalisation)","DT Approved","2023-07-20"]
[null,null,4744,"QLD","Moranbah","All","Owner Occupied","Principal and Interest or Interest Only (Construction)","Maximum LVR = 80% (including LMI capitalisation)","DT Approved","2023-07-20"]
[null,null,4744,"QLD","Moranbah","All","Owner Occupied","Interest Only (Non-Construction) or Line of Credit","Maximum LVR = 70% (including LMI capitalisation)","DT Approved","2023-07-20"]
[null,null,4744,"QLD","Moranbah","All","Non Owner Occupied","All","Maximum LVR = 70% (including LMI capitalisation)","DT Approved","2023-07-20"]
[null,null,4745,"QLD","Dysart","All","Owner Occupied","Principal and Interest or Interest Only (Construction)","Maximum LVR = 80% (including LMI capitalisation)","DT Approved","2023-07-20"]
[null,null,4745,"QLD","Dysart","All","Owner Occupied","Interest Only (Non-Construction) or Line of Credit","Maximum LVR = 70% (including LMI capitalisation)","DT Approved","2023-07-20"]
[null,null,4745,"QLD","Dysart","All","Non Owner Occupied","All","Maximum LVR = 70% (including LMI capitalisation)","DT Approved","2023-07-20"]
[null,null,4746,"QLD","May Downs, Middlemount","All","Owner Occupied","Principal and Interest or Interest Only (Construction)","Maximum LVR = 80% (including LMI capitalisation)","DT Approved","2023-07-20"]
[null,null,4746,"QLD","May Downs, Middlemount","All","Owner Occupied","Interest Only (Non-Construction) or Line of Credit","Maximum LVR = 70% (including LMI capitalisation)","DT Approved","2023-07-20"]
[null,null,4746,"QLD","May Downs, Middlemount","All","Non Owner Occupied","All","Maximum LVR = 70% (including LMI capitalisation)","DT Approved","2023-07-20"]
[null,null,4750,"QLD","Bucasia, Shoal Point","All","Owner Occupied","Principal and Interest or Interest Only (Construction)","Maximum LVR = 80% (including LMI capitalisation)","DT Approved","2025-09-02"]
[null,null,4750,"QLD","Bucasia, Shoal Point","All","Owner Occupied","Interest Only (Non-Construction) or Line of Credit","Maximum LVR = 80% (including LMI capitalisation)","DT Approved","2025-09-02"]
[null,null,4750,"QLD","Bucasia, Shoal Point","All","Non Owner Occupied","All","Maximum LVR = 80% (including LMI capitalisation)","DT Approved","2025-09-02"]
[null,null,4751,"QLD","Greenmount, Palmyra, Victoria Plains, Walkerston","All","Owner Occupied","Principal and Interest or Interest Only (Construction)","Maximum LVR = 80% (including LMI capitalisation)","DT Approved","2025-09-02"]
[null,null,4751,"QLD","Greenmount, Palmyra, Victoria Plains, Walkerston","All","Owner Occupied","Interest Only (Non-Construction) or Line of Credit","Maximum LVR = 80% (including LMI capitalisation)","DT Approved","2025-09-02"]
[null,null,4751,"QLD","Greenmount, Palmyra, Victoria Plains, Walkerston","All","Non Owner Occupied","All","Maximum LVR = 80% (including LMI capitalisation)","DT Approved","2025-09-02"]
[null,null,4753,"QLD","Devereux Creek, Marian","All","Owner Occupied","Principal and Interest or Interest Only (Construction)","Maximum LVR = 80% (including LMI capitalisation)","DT Approved","2025-09-02"]
[null,null,4753,"QLD","Devereux Creek, Marian","All","Owner Occupied","Interest Only (Non-Construction) or Line of Credit","Maximum LVR = 80% (including LMI capitalisation)","DT Approved","2025-09-02"]
[null,null,4753,"QLD","Devereux Creek, Marian","All","Non Owner Occupied","All","Maximum LVR = 80% (including LMI capitalisation)","DT Approved","2025-09-02"]
[null,null,4754,"QLD","Benholme, Dows Creek, Mia Mia, Mirani, Mount Martin, Pinevale, Septimus","All","Owner Occupied","Principal and Interest or Interest Only (Construction)","Maximum LVR = 80% (including LMI capitalisation)","DT Approved","2025-09-02"]
[null,null,4754,"QLD","Benholme, Dows Creek, Mia Mia, Mirani, Mount Martin, Pinevale, Septimus","All","Owner Occupied","Interest Only (Non-Construction) or Line of Credit","Maximum LVR = 70% (including LMI capitalisation)","DT Approved","2025-09-02"]
[null,null,4754,"QLD","Benholme, Dows Creek, Mia Mia, Mirani, Mount Martin, Pinevale, Septimus","All","Non Owner Occupied","All","Maximum LVR = 70% (including LMI capitalisation)","DT Approved","2025-09-02"]
[null,null,4756,"QLD","Finch Hatton, Netherdale","All","Owner Occupied","Principal and Interest or Interest Only (Construction)","Maximum LVR = 80% (including LMI capitalisation)","DT Approved","2025-09-02"]
[null,null,4756,"QLD","Finch Hatton, Netherdale","All","Owner Occupied","Interest Only (Non-Construction) or Line of Credit","Maximum LVR = 70% (including LMI capitalisation)","DT Approved","2025-09-02"]
[null,null,4756,"QLD","Finch Hatton, Netherdale","All","Non Owner Occupied","All","Maximum LVR = 70% (including LMI capitalisation)","DT Approved","2025-09-02"]
[null,null,4757,"QLD","Broken River, Crediton, Dalrymple Heights, Eungella, Eungella Dam","All","Owner Occupied","Principal and Interest or Interest Only (Construction)","Maximum LVR = 80% (including LMI capitalisation)","DT Approved","2025-09-02"]
[null,null,4757,"QLD","Broken River, Crediton, Dalrymple Heights, Eungella, Eungella Dam","All","Owner Occupied","Interest Only (Non-Construction) or Line of Credit","Maximum LVR = 70% (including LMI capitalisation)","DT Approved","2025-09-02"]
[null,null,4757,"QLD","Broken River, Crediton, Dalrymple Heights, Eungella, Eungella Dam","All","Non Owner Occupied","All","Maximum LVR = 70% (including LMI capitalisation)","DT Approved","2025-09-02"]
[null,null,4798,"QLD","Calen, Mentmore, Pindi Pindi, St Helens Beach","All","Owner Occupied","Principal and Interest or Interest Only (Construction)","Maximum LVR = 80% (including LMI capitalisation)","DT Approved","2025-09-02"]
[null,null,4798,"QLD","Calen, Mentmore, Pindi Pindi, St Helens Beach","All","Owner Occupied","Interest Only (Non-Construction) or Line of Credit","Maximum LVR = 70% (including LMI capitalisation)","DT Approved","2025-09-02"]
[null,null,4798,"QLD","Calen, Mentmore, Pindi Pindi, St Helens Beach","All","Non Owner Occupied","All","Maximum LVR = 70% (including LMI capitalisation)","DT Approved","2025-09-02"]
[null,null,4799,"QLD","Bloomsbury, Midge Point","All","Owner Occupied","Principal and Interest or Interest Only (Construction)","Maximum LVR = 80% (including LMI capitalisation)","DT Approved","2025-09-02"]
[null,null,4799,"QLD","Bloomsbury, Midge Point","All","Owner Occupied","Interest Only (Non-Construction) or Line of Credit","Maximum LVR = 70% (including LMI capitalisation)","DT Approved","2025-09-02"]
[null,null,4799,"QLD","Bloomsbury, Midge Point","All","Non Owner Occupied","All","Maximum LVR = 70% (including LMI capitalisation)","DT Approved","2025-09-02"]
[null,null,4800,"QLD","Andromache, Brandy Creek, Breadalbane, Cannon Valley, Cape Conway, Cape Gloucester, Conway, Conway Beach, Crystal Brook, Dingo Beach","All","Owner Occupied","Principal and Interest or Interest Only (Construction)","Maximum LVR = 80% (including LMI capitalisation)","DT Approved","2025-09-02"]
[null,null,4800,"QLD","Andromache, Brandy Creek, Breadalbane, Cannon Valley, Cape Conway, Cape Gloucester, Conway, Conway Beach, Crystal Brook, Dingo Beach","All","Owner Occupied","Interest Only (Non-Construction) or Line of Credit","Maximum LVR = 80% (including LMI capitalisation)","DT Approved","2025-09-02"]
[null,null,4800,"QLD","Andromache, Brandy Creek, Breadalbane, Cannon Valley, Cape Conway, Cape Gloucester, Conway, Conway Beach, Crystal Brook, Dingo Beach","All","Non Owner Occupied","All","Maximum LVR = 80% (including LMI capitalisation)","DT Approved","2025-09-02"]
[null,null,4802,"QLD","Airlie Beach, Cannonvale, Flametree, Jubilee Pocket, Mandalay, Mount Rooper, Shute Harbour, Whitsundays, Woodwark","All","Owner Occupied","Principal and Interest or Interest Only (Construction)","Maximum LVR = 80% (including LMI capitalisation)","DT Approved","2025-09-02"]
[null,null,4802,"QLD","Airlie Beach, Cannonvale, Flametree, Jubilee Pocket, Mandalay, Mount Rooper, Shute Harbour, Whitsundays, Woodwark","All","Owner Occupied","Interest Only (Non-Construction) or Line of Credit","Maximum LVR = 80% (including LMI capitalisation)","DT Approved","2025-09-02"]
[null,null,4802,"QLD","Airlie Beach, Cannonvale, Flametree, Jubilee Pocket, Mandalay, Mount Rooper, Shute Harbour, Whitsundays, Woodwark","All","Non Owner Occupied","All","Maximum LVR = 80% (including LMI capitalisation)","DT Approved","2025-09-02"]
[null,null,4804,"QLD","Collinsville , Mount Coolon , Mount Wyatt , Newlands , Scottville , Springlands","All","Owner Occupied","Principal and Interest or Interest Only (Construction)","Maximum LVR = 80% (including LMI capitalisation)","DT Approved","2023-07-20"]
[null,null,4804,"QLD","Collinsville , Mount Coolon , Mount Wyatt , Newlands , Scottville , Springlands","All","Owner Occupied","Interest Only (Non-Construction) or Line of Credit","Maximum LVR = 70% (including LMI capitalisation)","DT Approved","2023-07-20"]
[null,null,4804,"QLD","Collinsville , Mount Coolon , Mount Wyatt , Newlands , Scottville , Springlands","All","Non Owner Occupied","All","Maximum LVR = 70% (including LMI capitalisation)","DT Approved","2023-07-20"]
[null,null,4805,"QLD","Bogie, Bowen, Gumlu, Guthalungra, Merinda, Queens Beach","All","Owner Occupied","Principal and Interest or Interest Only (Construction)","Maximum LVR = 80% (including LMI capitalisation)","DT Approved","2023-07-20"]
[null,null,4805,"QLD","Bogie, Bowen, Gumlu, Guthalungra, Merinda, Queens Beach","All","Owner Occupied","Interest Only (Non-Construction) or Line of Credit","Maximum LVR = 70% (including LMI capitalisation)","DT Approved","2023-07-20"]
[null,null,4805,"QLD","Bogie, Bowen, Gumlu, Guthalungra, Merinda, Queens Beach","All","Non Owner Occupied","All","Maximum LVR = 70% (including LMI capitalisation)","DT Approved","2023-07-20"]
[null,null,4824,"QLD","Cloncurry, Four Ways, Gidya, Kuridala, Selwyn, Three Rivers","All","All","All","Maximum LVR = 70% (including LMI capitalisation)","DT Approved","2025-09-02"]
[null,null,4825,"QLD","Alpurrurulam, Barkly, Breakaway, Buckingham, Carrandotta, Dajarra, Duchess, Fielding, Fisher, Georgina","All","All","All","Maximum LVR = 70% (including LMI capitalisation)","DT Approved","2025-09-02"]
[null,null,4828,"QLD","Camooweal","All","All","All","Maximum LVR = 70% (including LMI capitalisation)","DT Approved","2025-09-02"]
[null,null,4852,"QLD","Bingil Bay, Carmoo, Djiru, Dunk, Garners Beach, Midgeree Bar, Mission Beach, South Mission Beach, Tam O'Shanter, Wongaling Beach","All","Owner Occupied","Principal and Interest or Interest Only (Construction)","Maximum LVR = 80% (including LMI capitalisation)","DT Approved","2025-09-02"]
[null,null,4852,"QLD","Bingil Bay, Carmoo, Djiru, Dunk, Garners Beach, Midgeree Bar, Mission Beach, South Mission Beach, Tam O'Shanter, Wongaling Beach","All","Owner Occupied","Interest Only (Non-Construction) or Line of Credit","Maximum LVR = 80% (including LMI capitalisation)","DT Approved","2025-09-02"]
[null,null,4852,"QLD","Bingil Bay, Carmoo, Djiru, Dunk, Garners Beach, Midgeree Bar, Mission Beach, South Mission Beach, Tam O'Shanter, Wongaling Beach","All","Non Owner Occupied","All","Maximum LVR = 80% (including LMI capitalisation)","DT Approved","2025-09-02"]
[null,null,4854,"QLD","Bilyana, Birkalla, Bulgun, Cardstone, Dingo Pocket, Djarawong, East Feluga, Euramo, Feluga, Hull Heads","All","Owner Occupied","Principal and Interest or Interest Only (Construction)","Maximum LVR = 80% (including LMI capitalisation)","DT Approved","2025-09-02"]
[null,null,4854,"QLD","Bilyana, Birkalla, Bulgun, Cardstone, Dingo Pocket, Djarawong, East Feluga, Euramo, Feluga, Hull Heads","All","Owner Occupied","Interest Only (Non-Construction) or Line of Credit","Maximum LVR = 80% (including LMI capitalisation)","DT Approved","2025-09-02"]
[null,null,4854,"QLD","Bilyana, Birkalla, Bulgun, Cardstone, Dingo Pocket, Djarawong, East Feluga, Euramo, Feluga, Hull Heads","All","Non Owner Occupied","All","Maximum LVR = 80% (including LMI capitalisation)","DT Approved","2025-09-02"]
[null,null,4860,"QLD","Bamboo Creek, Belvedere, Coconuts, Cooroo Lands, Coorumba, Coquette Point, Cullinane, Daradgee, East Innisfail, East Palmerston","All","Owner Occupied","Principal and Interest or Interest Only (Construction)","Maximum LVR = 80% (including LMI capitalisation)","DT Approved","2025-09-02"]
[null,null,4860,"QLD","Bamboo Creek, Belvedere, Coconuts, Cooroo Lands, Coorumba, Coquette Point, Cullinane, Daradgee, East Innisfail, East Palmerston","All","Owner Occupied","Interest Only (Non-Construction) or Line of Credit","Maximum LVR = 80% (including LMI capitalisation)","DT Approved","2025-09-02"]
[null,null,4860,"QLD","Bamboo Creek, Belvedere, Coconuts, Cooroo Lands, Coorumba, Coquette Point, Cullinane, Daradgee, East Innisfail, East Palmerston","All","Non Owner Occupied","All","Maximum LVR = 80% (including LMI capitalisation)","DT Approved","2025-09-02"]
[null,null,4877,"QLD","Craiglie, Killaloe, Mowbray, Oak Beach, Port Douglas, Wangetti","All","Owner Occupied","Principal and Interest or Interest Only (Construction)","Maximum LVR = 80% (including LMI capitalisation)","DT Approved","2025-09-02"]
[null,null,4877,"QLD","Craiglie, Killaloe, Mowbray, Oak Beach, Port Douglas, Wangetti","All","Owner Occupied","Interest Only (Non-Construction) or Line of Credit","Maximum LVR = 80% (including LMI capitalisation)","DT Approved","2025-09-02"]
[null,null,4877,"QLD","Craiglie, Killaloe, Mowbray, Oak Beach, Port Douglas, Wangetti","All","Non Owner Occupied","All","Maximum LVR = 80% (including LMI capitalisation)","DT Approved","2025-09-02"]
[null,null,5000,"SA","Adelaide CBD","Apartment","Non Owner Occupied","All","For non-owner occupied apartments LMI is required where LVR is more than 70%","Not Applicable","2023-07-20"]
[null,null,5001,"SA","Adelaide","Apartment","Non Owner Occupied","All","For non-owner occupied apartments LMI is required where LVR is more than 70%","Not Applicable","2023-07-20"]
[null,null,5031,"SA","Mile End, Mile End South, Thebarton, Torrensville","Apartment","All","All","Maximum LVR = 80% (including LMI capitalisation)","DT Approved","2025-09-02"]
[null,null,5032,"SA","Brooklyn Park, Lockleys, Underdale","Apartment","All","All","Maximum LVR = 80% (including LMI capitalisation)","DT Approved","2025-09-02"]
[null,null,5600,"SA","Whyalla , Whyalla Playford","All","All","All","Maximum LVR = 70% (including LMI capitalisation)","DT Approved","2025-09-02"]
[null,null,5601,"SA","Whyalla , Whyalla Playford","All","All","All","Maximum LVR = 70% (including LMI capitalisation)","DT Approved","2025-09-02"]
[null,null,5608,"SA","Whyalla Norrie , Whyalla Stuart","All","All","All","Maximum LVR = 70% (including LMI capitalisation)","DT Approved","2025-09-02"]
[null,null,5609,"SA","Whyalla Jenkins","All","All","All","Maximum LVR = 70% (including LMI capitalisation)","DT Approved","2025-09-02"]
[null,null,6000,"WA","Perth CBD","Apartment","Non Owner Occupied","All","For non-owner occupied apartments LMI is required where LVR is more than 70%","Not Applicable","2023-07-20"]
[null,null,6003,"WA","Highgate, Northbridge","Apartment","Non Owner Occupied","All","For non-owner occupied apartments LMI is required where LVR is more than 70%","Not Applicable","2023-07-20"]
[null,null,6004,"WA","East Perth","Apartment","Non Owner Occupied","All","For non-owner occupied apartments LMI is required where LVR is more than 70%","Not Applicable","2023-07-20"]
[null,null,6005,"WA","Kings Park, West Perth","Apartment","Non Owner Occupied","All","For non-owner occupied apartments LMI is required where LVR is more than 70%","Not Applicable","2023-07-20"]
[null,null,6100,"WA","Burswood, Lathlain, Victoria Park","Apartment","Non Owner Occupied","All","Maximum LVR = 80% (including LMI capitalisation)","DT Approved","2025-09-02"]
[null,null,6103,"WA","Rivervale","Apartment","Non Owner Occupied","All","Maximum LVR = 80% (including LMI capitalisation)","DT Approved","2025-09-02"]
[null,null,6429,"WA","Boorabbin, Bullabulling, Coolgardie, Karramindie, Londonderry, Mount Burges, Victoria Rock, Wallaroo","All","Owner Occupied","Principal and Interest or Interest Only (Construction)","Maximum LVR = 80% (including LMI capitalisation)","DT Approved","2023-07-20"]
[null,null,6429,"WA","Boorabbin, Bullabulling, Coolgardie, Karramindie, Londonderry, Mount Burges, Victoria Rock, Wallaroo","All","Owner Occupied","Interest Only (Non-Construction) or Line of Credit","Maximum LVR = 70% (including LMI capitalisation)","DT Approved","2023-07-20"]
[null,null,6429,"WA","Boorabbin, Bullabulling, Coolgardie, Karramindie, Londonderry, Mount Burges, Victoria Rock, Wallaroo","All","Non Owner Occupied","All","Maximum LVR = 70% (including LMI capitalisation)","DT Approved","2023-07-20"]
[null,null,6430,"WA","Binduli, Broadwood, Hannans, Kalgoorlie, Karlkurla, Lamington, Mullingar, Piccadilly, Somerville, South Kalgoorlie","All","Owner Occupied","Principal and Interest or Interest Only (Construction)","Maximum LVR = 80% (including LMI capitalisation)","DT Approved","2023-07-20"]
[null,null,6430,"WA","Binduli, Broadwood, Hannans, Kalgoorlie, Karlkurla, Lamington, Mullingar, Piccadilly, Somerville, South Kalgoorlie","All","Owner Occupied","Interest Only (Non-Construction) or Line of Credit","Maximum LVR = 70% (including LMI capitalisation)","DT Approved","2023-07-20"]
[null,null,6430,"WA","Binduli, Broadwood, Hannans, Kalgoorlie, Karlkurla, Lamington, Mullingar, Piccadilly, Somerville, South Kalgoorlie","All","Non Owner Occupied","All","Maximum LVR = 70% (including LMI capitalisation)","DT Approved","2023-07-20"]
[null,null,6431,"QLD","Boorara, Brown Hill, Bulong, Emu Flat, Feysville, Kanowna, Kookynie, Kurnalpi, Lakewood, Ora Banda","All","Owner Occupied","Principal and Interest or Interest Only (Construction)","Maximum LVR = 80% (including LMI capitalisation)","DT Approved","2025-09-02"]
[null,null,6431,"QLD","Boorara, Brown Hill, Bulong, Emu Flat, Feysville, Kanowna, Kookynie, Kurnalpi, Lakewood, Ora Banda","All","Owner Occupied","Interest Only (Non-Construction) or Line of Credit","Maximum LVR = 70% (including LMI capitalisation)","DT Approved","2025-09-02"]
[null,null,6431,"QLD","Boorara, Brown Hill, Bulong, Emu Flat, Feysville, Kanowna, Kookynie, Kurnalpi, Lakewood, Ora Banda","All","Non Owner Occupied","All","Maximum LVR = 70% (including LMI capitalisation)","DT Approved","2025-09-02"]
[null,null,6432,"WA","Boulder, Fimiston, South Boulder, Victory Heights","All","Owner Occupied","Principal and Interest or Interest Only (Construction)","Maximum LVR = 80% (including LMI capitalisation)","DT Approved","2023-07-20"]
[null,null,6432,"WA","Boulder, Fimiston, South Boulder, Victory Heights","All","Owner Occupied","Interest Only (Non-Construction) or Line of Credit","Maximum LVR = 70% (including LMI capitalisation)","DT Approved","2023-07-20"]
[null,null,6432,"WA","Boulder, Fimiston, South Boulder, Victory Heights","All","Non Owner Occupied","All","Maximum LVR = 70% (including LMI capitalisation)","DT Approved","2023-07-20"]
[null,null,6434,"QLD","Cundeelee, Forrest, Parkeston, Rawlinna, Zanthus","All","Owner Occupied","Principal and Interest or Interest Only (Construction)","Maximum LVR = 80% (including LMI capitalisation)","DT Approved","2025-09-02"]
[null,null,6434,"QLD","Cundeelee, Forrest, Parkeston, Rawlinna, Zanthus","All","Owner Occupied","Interest Only (Non-Construction) or Line of Credit","Maximum LVR = 70% (including LMI capitalisation)","DT Approved","2025-09-02"]
[null,null,6434,"QLD","Cundeelee, Forrest, Parkeston, Rawlinna, Zanthus","All","Non Owner Occupied","All","Maximum LVR = 70% (including LMI capitalisation)","DT Approved","2025-09-02"]
[null,null,6436,"WA","Menzies, Ularring","All","Owner Occupied","Principal and Interest or Interest Only (Construction)","Maximum LVR = 80% (including LMI capitalisation)","DT Approved","2023-07-20"]
[null,null,6436,"WA","Menzies, Ularring","All","Owner Occupied","Interest Only (Non-Construction) or Line of Credit","Maximum LVR = 70% (including LMI capitalisation)","DT Approved","2023-07-20"]
[null,null,6436,"WA","Menzies, Ularring","All","Non Owner Occupied","All","Maximum LVR = 70% (including LMI capitalisation)","DT Approved","2023-07-20"]
[null,null,6437,"WA","Leinster, Sir Samuel","All","Owner Occupied","Principal and Interest or Interest Only (Construction)","Maximum LVR = 80% (including LMI capitalisation)","DT Approved","2023-07-20"]
[null,null,6437,"WA","Leinster, Sir Samuel","All","Owner Occupied","Interest Only (Non-Construction) or Line of Credit","Maximum LVR = 70% (including LMI capitalisation)","DT Approved","2023-07-20"]
[null,null,6437,"WA","Leinster, Sir Samuel","All","Non Owner Occupied","All","Maximum LVR = 70% (including LMI capitalisation)","DT Approved","2023-07-20"]
[null,null,6438,"WA","Leonora, Lake Darlot","All","Owner Occupied","Principal and Interest or Interest Only (Construction)","Maximum LVR = 80% (including LMI capitalisation)","DT Approved","2023-07-20"]
[null,null,6438,"WA","Leonora, Lake Darlot","All","Owner Occupied","Interest Only (Non-Construction) or Line of Credit","Maximum LVR = 70% (including LMI capitalisation)","DT Approved","2023-07-20"]
[null,null,6438,"WA","Leonora, Lake Darlot","All","Non Owner Occupied","All","Maximum LVR = 70% (including LMI capitalisation)","DT Approved","2023-07-20"]
[null,null,6440,"WA","Bandya, Beadell, Cosmo Newbery, Lake Wells, Laverton, Neale","All","Owner Occupied","Principal and Interest or Interest Only (Construction)","Maximum LVR = 80% (including LMI capitalisation)","DT Approved","2023-07-20"]
[null,null,6440,"WA","Bandya, Beadell, Cosmo Newbery, Lake Wells, Laverton, Neale","All","Owner Occupied","Interest Only (Non-Construction) or Line of Credit","Maximum LVR = 70% (including LMI capitalisation)","DT Approved","2023-07-20"]
[null,null,6440,"WA","Bandya, Beadell, Cosmo Newbery, Lake Wells, Laverton, Neale","All","Non Owner Occupied","All","Maximum LVR = 70% (including LMI capitalisation)","DT Approved","2023-07-20"]
[null,null,6442,"WA","Kambalda East, Kambalda West","All","Owner Occupied","Principal and Interest or Interest Only (Construction)","Maximum LVR = 80% (including LMI capitalisation)","DT Approved","2023-07-20"]
[null,null,6442,"WA","Kambalda East, Kambalda West","All","Owner Occupied","Interest Only (Non-Construction) or Line of Credit","Maximum LVR = 70% (including LMI capitalisation)","DT Approved","2023-07-20"]
[null,null,6442,"WA","Kambalda East, Kambalda West","All","Non Owner Occupied","All","Maximum LVR = 70% (including LMI capitalisation)","DT Approved","2023-07-20"]
[null,null,6443,"WA","Balladonia, Caiguna, Cocklebiddy, Dundas, Eucla, Fraser Range, Higginsville, Madura, Mundrabilla, Norseman","All","Owner Occupied","Principal and Interest or Interest Only (Construction)","Maximum LVR = 80% (including LMI capitalisation)","DT Approved","2023-07-20"]
[null,null,6443,"WA","Balladonia, Caiguna, Cocklebiddy, Dundas, Eucla, Fraser Range, Higginsville, Madura, Mundrabilla, Norseman","All","Owner Occupied","Interest Only (Non-Construction) or Line of Credit","Maximum LVR = 70% (including LMI capitalisation)","DT Approved","2023-07-20"]
[null,null,6443,"WA","Balladonia, Caiguna, Cocklebiddy, Dundas, Eucla, Fraser Range, Higginsville, Madura, Mundrabilla, Norseman","All","Non Owner Occupied","All","Maximum LVR = 70% (including LMI capitalisation)","DT Approved","2023-07-20"]
[null,null,6710,"WA","Cane, Onslow, Peedamulla, Talandji, Yannarie","All","All","All","Maximum LVR = 70% (including LMI capitalisation)","DT Approved","2014-05-24"]
[null,null,6713,"WA","Dampier Archipelago, Dampier","All","All","All","Maximum LVR = 70% (including LMI capitalisation)","DT Approved","2014-05-24"]
[null,null,6714,"WA","Antonymyre, Balla Balla, Banynton, Bulgarra, Burrup, Cleaverville, Cooya Pooya, Gap Ridge, Gnoorea, Karratha, Karratha Industrial Estate, Maitland, Mardie, Millars Well, Mulataga, Nickol, Pegs Creek, Sherlock, Stove Hill","All","All","All","Maximum LVR = 70% (including LMI capitalisation)","DT Approved","2023-07-20"]
[null,null,6716,"WA","Pannawonica, Fortescue, Hamersley Range, Millstream","All","All","All","Maximum LVR = 70% (including LMI capitalisation)","DT Approved","2014-05-24"]
[null,null,6718,"WA","Roebourne, Whim Creek","All","All","All","Maximum LVR = 70% (including LMI capitalisation)","DT Approved","2014-05-24"]
[null,null,6720,"WA","Cossack, Point Samson, Wickham","All","All","All","Maximum LVR = 70% (including LMI capitalisation)","DT Approved","2014-05-24"]
[null,null,6721,"WA","Indee, Mundabullangana, Pardoo, Port Hedland, Redbank, Strelley, Wallareenya, Wedgefield","All","All","All","Maximum LVR = 70% (including LMI capitalisation)","DT Approved","2023-07-20"]
[null,null,6722,"WA","Boodarie, De Grey, Finucane, Pippingarra, South Hedland","All","All","All","Maximum LVR = 70% (including LMI capitalisation)","DT Approved","2014-05-24"]
[null,null,6725,"WA","Bilingurr , Broome , Dampier Peninsula , Djugun , Eighty Mile Beach , Gingerah , Lagrange , Minyirr , Roebuck , Waterbank","All","Owner Occupied","Principal and Interest or Interest Only (Construction)","Maximum LVR = 80% (including LMI capitalisation)","DT Approved","2020-02-29"]
[null,null,6725,"WA","Bilingurr , Broome , Dampier Peninsula , Djugun , Eighty Mile Beach , Gingerah , Lagrange , Minyirr , Roebuck , Waterbank","All","Owner Occupied","Interest Only (Non-Construction) or Line of Credit","Maximum LVR = 70% (including LMI capitalisation)","DT Approved","2020-02-29"]
[null,null,6725,"WA","Bilingurr , Broome , Dampier Peninsula , Djugun , Eighty Mile Beach , Gingerah , Lagrange , Minyirr , Roebuck , Waterbank","All","Non Owner Occupied","All","Maximum LVR = 70% (including LMI capitalisation)","DT Approved","2016-10-22"]
[null,null,6726,"WA","Cable Beach","All","Owner Occupied","Principal and Interest or Interest Only (Construction)","Maximum LVR = 80% (including LMI capitalisation)","DT Approved","2023-07-20"]
[null,null,6726,"WA","Cable Beach","All","Owner Occupied","Interest Only (Non-Construction) or Line of Credit","Maximum LVR = 70% (including LMI capitalisation)","DT Approved","2023-07-20"]
[null,null,6726,"WA","Cable Beach","All","Non Owner Occupied","All","Maximum LVR = 70% (including LMI capitalisation)","DT Approved","2023-07-20"]
[null,null,6728,"WA","Camballin , Derby , Geegully Creek , King Leopold Ranges , Meda , St George Ranges , Willare","All","Owner Occupied","Principal and Interest or Interest Only (Construction)","Maximum LVR = 80% (including LMI capitalisation)","DT Approved","2023-07-20"]
[null,null,6728,"WA","Camballin , Derby , Geegully Creek , King Leopold Ranges , Meda , St George Ranges , Willare","All","Owner Occupied","Interest Only (Non-Construction) or Line of Credit","Maximum LVR = 70% (including LMI capitalisation)","DT Approved","2023-07-20"]
[null,null,6728,"WA","Camballin , Derby , Geegully Creek , King Leopold Ranges , Meda , St George Ranges , Willare","All","Non Owner Occupied","All","Maximum LVR = 70% (including LMI capitalisation)","DT Approved","2023-07-20"]
[null,null,6740,"WA","Drysdale River, Kalumburu, Mitchell Plateau, Oombulgurri, Prince Regent River, Wyndham","All","Owner Occupied","Principal and Interest or Interest Only (Construction)","Maximum LVR = 80% (including LMI capitalisation)","DT Approved","2023-07-20"]
[null,null,6740,"WA","Drysdale River, Kalumburu, Mitchell Plateau, Oombulgurri, Prince Regent River, Wyndham","All","Owner Occupied","Interest Only (Non-Construction) or Line of Credit","Maximum LVR = 70% (including LMI capitalisation)","DT Approved","2023-07-20"]
[null,null,6740,"WA","Drysdale River, Kalumburu, Mitchell Plateau, Oombulgurri, Prince Regent River, Wyndham","All","Non Owner Occupied","All","Maximum LVR = 70% (including LMI capitalisation)","DT Approved","2023-07-20"]
[null,null,6743,"WA","Cambridge Gulf, Durack, Gibb, Kununurra, Lake Argyle, Warmun","All","Owner Occupied","Principal and Interest or Interest Only (Construction)","Maximum LVR = 80% (including LMI capitalisation)","DT Approved","2023-07-20"]
[null,null,6743,"WA","Cambridge Gulf, Durack, Gibb, Kununurra, Lake Argyle, Warmun","All","Owner Occupied","Interest Only (Non-Construction) or Line of Credit","Maximum LVR = 70% (including LMI capitalisation)","DT Approved","2023-07-20"]
[null,null,6743,"WA","Cambridge Gulf, Durack, Gibb, Kununurra, Lake Argyle, Warmun","All","Non Owner Occupied","All","Maximum LVR = 70% (including LMI capitalisation)","DT Approved","2023-07-20"]
[null,null,6751,"WA","Chichester, Innawanga, Juna Downs, Karijini, Mount Sheila, Mulga Downs, Nanutarra, Rocklea, Tom Price, Wittenoom","All","All","All","Maximum LVR = 70% (including LMI capitalisation)","DT Approved","2014-05-24"]
[null,null,6753,"WA","Newman","All","All","All","Maximum LVR = 70% (including LMI capitalisation)","DT Approved","2014-05-24"]
[null,null,6754,"WA","Paraburdoo","All","All","All","Maximum LVR = 70% (including LMI capitalisation)","DT Approved","2014-05-24"]
[null,null,6758,"WA","Nullagine","All","All","All","Maximum LVR = 70% (including LMI capitalisation)","DT Approved","2014-05-24"]
[null,null,6760,"WA","Marble Bar","All","All","All","Maximum LVR = 70% (including LMI capitalisation)","DT Approved","2014-05-24"]
[null,null,6765,"WA","Fitzroy Crossing, Mount Hardman","All","Owner Occupied","Principal and Interest or Interest Only (Construction)","Maximum LVR = 80% (including LMI capitalisation)","DT Approved","2023-07-20"]
[null,null,6765,"WA","Fitzroy Crossing, Mount Hardman","All","Owner Occupied","Interest Only (Non-Construction) or Line of Credit","Maximum LVR = 70% (including LMI capitalisation)","DT Approved","2023-07-20"]
[null,null,6765,"WA","Fitzroy Crossing, Mount Hardman","All","Non Owner Occupied","All","Maximum LVR = 70% (including LMI capitalisation)","DT Approved","2023-07-20"]
[null,null,6770,"WA","Halls Creek, McBeath, Mueller Ranges, Ord River, Purnululu, Sturt Creek, Tanami","All","Owner Occupied","Principal and Interest or Interest Only (Construction)","Maximum LVR = 80% (including LMI capitalisation)","DT Approved","2023-07-20"]
[null,null,6770,"WA","Halls Creek, McBeath, Mueller Ranges, Ord River, Purnululu, Sturt Creek, Tanami","All","Owner Occupied","Interest Only (Non-Construction) or Line of Credit","Maximum LVR = 70% (including LMI capitalisation)","DT Approved","2023-07-20"]
[null,null,6770,"WA","Halls Creek, McBeath, Mueller Ranges, Ord River, Purnululu, Sturt Creek, Tanami","All","Non Owner Occupied","All","Maximum LVR = 70% (including LMI capitalisation)","DT Approved","2023-07-20"]

{"sheet":"Definitions","index":4,"n_rows":14,"n_cols":4,"rows_kept":14,"cut":false,"hidden":true,"merged":[]}
[]
[null,null,"Geographic Strategies Postcode Reference Tool"]
[]
[]
[]
[null,null,"Field","Definition"]
[null,null,"Postcode","Postcode in which the security is located"]
[null,null,"State","State in which the security is located (driven by Postcode in which the security is located)."]
[null,null,"Suburb","Suburb in which the security is located (suburbs provided are a guide only and are not exhaustive of all towns associated with each postcode)."]
[null,null,"Property Type","Property Type to which the policy/strategy applies (note: an apartment is not a detached house, townhouse or multi-unit property type)."]
[null,null,"Loan Purpose","Loan Purpose to which the policy/strategy applies."]
[null,null,"Loan Type","Loan Type to which policy/strategy applies (Principal and Interest, Interest Only)."]
[null,null,"Policy","Applicable restrictions."]
[null,null,"Effective Date","Applications received on or after this date shall have the listed policy/strategy applied."]